{"text_format":"1","workbook":"xlsx","n_sheets":11,"sheets":["Instructions","Outstanding Errors and Warnings","Services Employment","Services Education","Services Income","Services Housing","Services Health and Social","Services Civic Eng. & Comm Inv.","Support Services","Identification","XML Export Map"],"not_rendered":{"charts":0,"images":0,"macros":1,"external_links":0,"defined_names":167,"comments":0,"pivot_tables":0},"unopened":[],"bounds":{"document_bytes":16777216,"sheet_cells":100000,"rows_first":2000,"rows_last":500,"rows_between":2000,"halvings":0,"cell_chars":16384,"cell_head_chars":4096},"cells_cut":0,"cells_raw":0,"read":"whole","date_system":"1900"}

{"sheet":"Instructions","index":0,"n_rows":12,"n_cols":3,"rows_kept":12,"cut":false,"hidden":false,"merged":[[7,1,7,3],[3,1,3,3],[5,1,5,3],[19,1,19,3],[6,1,6,3],[15,1,15,3],[17,1,17,3],[13,1,13,3],[9,1,9,3],[10,1,10,3],[11,1,11,3],[12,1,12,3],[18,1,18,3],[16,1,16,3],[8,1,8,3]]}
[]
[null,null,"CSBG CARES Supplemental Instructional Notes"]
[]
[null,"Module 4, Section A: Individual and Family National Performance Indicators (NPIs) - Data Entry Form"]
[]
[null,"Section A: Individual and Family NPIs Data Entry Form is comprised of indicators to report outcomes that fall under National Goal 1: Individuals and families with low incomes are stable and achieve economic security. The indicators are the vehicle by which CSBG Eligible Entities measure and report the outcomes they have achieved for individuals and families. All Individual and Family NPIs are optional, and there is a category for \"Other Outcome Indicator.\" For the CSBG CARES Supplemental submission, please include only information on people, services and outcomes directly supported with CSBG CARES Supplemental resources.  This information may be determined based on a direct count of individuals for services and activities supported only with CSBG CARES Supplemental funds or based on a proportional analysis of recipients of services funded through regularly-appropriated CSBG funds or other sources and supplemented by CSBG CARES Act funds. "]
[]
[null,"Module 4, Section B: Individual and Family Services - Data Entry Form"]
[null,"Section B: Individual and Family Services Data Entry Form provides information on the work CSBG Eligible Entities did to help individuals and families achieve the outcomes listed in Section A. This standardized Individual and Family Services list will aid in analysis of the relationship between people, services, and outcomes. Information provided in this section must include services and activities supported only with CSBG CARES funds either through a direct count for services funded only with CSBG CARES funds or based on a proportional analysis for services supplemented with CBSG CARES funds and also funded through regularly-appropriated CSBG funds or other sources. "]
[]
[null,"Module 4, Section C: All Characteristics Report - Data Entry Form"]
[null,"Section C: While the regular submission of the The All Characteristics Report Data Entry Form collects data on all individuals and households, this submission should focus onlyon the individuals and households that received services supported by CSBG CARES Supplemental grant funds. This demographic information strengthens the CSBG Annual Report by demonstrating who is being served by CSBG Eligible Entities. This information may be determined based on a direct count of individuals for services and activities supported only with CSBG CARES Supplemental funds or based on a proportional analysis for services supplemented with CBSG CARES funds and also funded through regularly-appropriated CSBG funds or other sources. "]

{"sheet":"Outstanding Errors and Warnings","index":1,"n_rows":5,"n_cols":6,"rows_kept":5,"cut":false,"hidden":false,"merged":[[3,1,3,4]]}
[]
[]
[null,null,null,null,null,"Double Click"]
[null,"Module 4 Errors and Warnings",null,null,null,"Below To"]
[null,"Tab","Data Field","Severity","Message Description","Go To Field"]

{"sheet":"Services Employment","index":2,"n_rows":28,"n_cols":7,"rows_kept":28,"cut":false,"hidden":false,"merged":[[26,5,26,6],[26,1,26,2],[6,1,6,2],[0,1,0,2],[1,1,1,2],[13,1,13,2],[16,1,16,2],[23,1,23,2],[1,5,1,6],[6,5,6,6],[13,5,13,6],[16,5,16,6],[23,5,23,6]]}
[null,"Module 4, Section B: Individual and Family Services "]
[null,"Employment Services",null,null,null,"Prior Year Reported"]
[]
[null,"Name of CSBG Eligible Entity Reporting:",{"$f":"M4AgencyName","v":"Southeastern Utah Association of Local Governments"}]
[null,{"$f":"\"State: \" & M4StateName","v":"State: Utah"},{"$f":"\"DUNS: \" & M4DUNS","v":"DUNS: 097758627"}]
[null,"Employment Services (SRV 1)","Unduplicated Number of \nIndividuals Served",null,null,"Employment Services (SRV 1)","Unduplicated Number of \nIndividuals Served"]
[null,"Skills Training and Opportunities for Experience (SRV 1a-f)",null,null,null,"Skills Training and Opportunities for Experience (SRV 1a-f)"]
[null,"SRV 1a Vocational Training ",12,null,null,"SRV 1a Vocational Training ",2]
[null,"SRV 1b On-the-Job and other Work Experience ",4,null,null,"SRV 1b On-the-Job and other Work Experience ",2]
[null," SRV 1c Youth Summer Work Placements",null,null,null," SRV 1c Youth Summer Work Placements"]
[null,"SRV 1d Apprenticeship/Internship",null,null,null,"SRV 1d Apprenticeship/Internship"]
[null,"SRV 1e Self-Employment Skills Training  ",null,null,null,"SRV 1e Self-Employment Skills Training  "]
[null," SRV 1f Job Readiness Training  ",13,null,null," SRV 1f Job Readiness Training  ",3]
[null,"Career Counseling (SRV 1g-h)",null,null,null,"Career Counseling (SRV 1g-h)"]
[null,"SRV 1g Workshops",4,null,null,"SRV 1g Workshops",1]
[null,"SRV 1h Coaching ",4,null,null,"SRV 1h Coaching ",2]
[null,"Job Search (SRV 1i-n)",null,null,null,"Job Search (SRV 1i-n)"]
[null,"SRV 1i Coaching ",13,null,null,"SRV 1i Coaching ",5]
[null,"SRV 1j Resume Development ",17,null,null,"SRV 1j Resume Development ",4]
[null,"SRV 1k Interview Skills Training ",14,null,null,"SRV 1k Interview Skills Training ",6]
[null,"SRV 1l Job Referrals",65,null,null,"SRV 1l Job Referrals",13]
[null,"SRV 1m Job Placements",12,null,null,"SRV 1m Job Placements",1]
[null,"SRV 1n Pre-employment physicals, background checks, etc.",null,null,null,"SRV 1n Pre-employment physicals, background checks, etc."]
[null,"Post Employment Supports (SRV 1o-p)",null,null,null,"Post Employment Supports (SRV 1o-p)"]
[null,"SRV 1o Coaching ",2,null,null,"SRV 1o Coaching ",3]
[null,"SRV 1p Interactions with employers ",5,null,null,"SRV 1p Interactions with employers ",4]
[null,"Employment Supplies (SRV 1q)",null,null,null,"Employment Supplies (SRV 1q)"]
[null,"SRV 1q Employment Supplies",null,null,null,"SRV 1q Employment Supplies"]

{"sheet":"Services Education","index":3,"n_rows":41,"n_cols":7,"rows_kept":41,"cut":false,"hidden":false,"merged":[[37,5,37,6],[39,5,39,6],[1,5,1,6],[5,5,5,6],[16,5,16,6],[18,5,18,6],[25,5,25,6],[35,5,35,6],[0,1,0,2],[25,1,25,2],[35,1,35,2],[37,1,37,2],[39,1,39,2],[1,1,1,2],[5,1,5,2],[16,1,16,2],[18,1,18,2]]}
[null,"Module 4, Section B: Individual and Family Services"]
[null,"Education and Cognitive Development Services",null,null,null,"Prior Year Reported"]
[null,"Name of CSBG Eligible Entity Reporting:",{"$f":"M4AgencyName","v":"Southeastern Utah Association of Local Governments"}]
[null,{"$f":"\"State: \" & M4StateName","v":"State: Utah"},{"$f":"\"DUNS: \" & M4DUNS","v":"DUNS: 097758627"}]
[null,"Education and Cognitive Development Services (SRV 2)","Unduplicated Number of \nIndividuals Served",null,null,"Education and Cognitive Development Services (SRV 2)","Unduplicated Number of \nIndividuals Served"]
[null,"Child/Young Adult Education Programs (SRV 2a-j)",null,null,null,"Child/Young Adult Education Programs (SRV 2a-j)"]
[null,"SRV 2a Early Head Start ",null,null,null,"SRV 2a Early Head Start "]
[null,"SRV 2b Head Start",null,null,null,"SRV 2b Head Start"]
[null,"SRV 2c Other Early-Childhood (0-5 yr. old) Education ",null,null,null,"SRV 2c Other Early-Childhood (0-5 yr. old) Education "]
[null,"SRV 2d K-12 Education ",null,null,null,"SRV 2d K-12 Education "]
[null,"SRV 2e K-12 Support Services",null,null,null,"SRV 2e K-12 Support Services"]
[null,"SRV 2f Financial Literacy Education",null,null,null,"SRV 2f Financial Literacy Education"]
[null,"SRV 2g Literacy/English Language Education",null,null,null,"SRV 2g Literacy/English Language Education"]
[null,"SRV 2h College-Readiness Preparation/Support  ",null,null,null,"SRV 2h College-Readiness Preparation/Support  "]
[null,"SRV 2i Other Post Secondary Preparation",null,null,null,"SRV 2i Other Post Secondary Preparation"]
[null,"SRV 2j Other Post Secondary Support",null,null,null,"SRV 2j Other Post Secondary Support"]
[null,"School Supplies (SRV 2k)",null,null,null,"School Supplies (SRV 2k)"]
[null,"SRV 2k School Supplies",null,null,null,"SRV 2k School Supplies"]
[null,"Extra-curricular Programs (SRV 2l-q)",null,null,null,"Extra-curricular Programs (SRV 2l-q)"]
[null,"SRV 2l Before and After School Activities",null,null,null,"SRV 2l Before and After School Activities"]
[null,"SRV 2m Summer Youth Recreational Activities",null,null,null,"SRV 2m Summer Youth Recreational Activities"]
[null,"SRV 2n Summer Education Programs",null,null,null,"SRV 2n Summer Education Programs"]
[null,"SRV 2o Behavior Improvement Programs (attitude, self-esteem, Dress-for-Success, etc.)",null,null,null,"SRV 2o Behavior Improvement Programs (attitude, self-esteem, Dress-for-Success, etc.)"]
[null,"SRV 2p Mentoring",null,null,null,"SRV 2p Mentoring"]
[null," SRV 2q Leadership Training",null,null,null," SRV 2q Leadership Training"]
[null,"Adult Education Programs (SRV 2r-z)",null,null,null,"Adult Education Programs (SRV 2r-z)"]
[null,"SRV 2r Adult Literacy Classes",null,null,null,"SRV 2r Adult Literacy Classes"]
[null,"SRV 2s English Language Classes",null,null,null,"SRV 2s English Language Classes"]
[null,"SRV 2t Basic Education Classes  ",null,null,null,"SRV 2t Basic Education Classes  "]
[null,"SRV 2u High School Equivalency Classes",null,null,null,"SRV 2u High School Equivalency Classes"]
[null," SRV 2v Leadership Training",null,null,null," SRV 2v Leadership Training"]
[null,"SRV 2w Parenting Supports (may be a part of the early childhood programs identified above)",null,null,null,"SRV 2w Parenting Supports (may be a part of the early childhood programs identified above)"]
[null,"SRV 2x Applied Technology Classes",null,null,null,"SRV 2x Applied Technology Classes"]
[null,"SRV 2y Post-Secondary Education Preparation",null,null,null,"SRV 2y Post-Secondary Education Preparation"]
[null,"SRV 2z Financial Literacy Education",null,null,null,"SRV 2z Financial Literacy Education"]
[null," Post-Secondary Education Supports (SRV 2aa)",null,null,null," Post-Secondary Education Supports (SRV 2aa)"]
[null,"SRV 2aa College applications, text books, computers, etc.",null,null,null,"SRV 2aa College applications, text books, computers, etc."]
[null,"Financial Aid Assistance (SRV 2bb)",null,null,null,"Financial Aid Assistance (SRV 2bb)"]
[null,"SRV 2bb Scholarships",null,null,null,"SRV 2bb Scholarships"]
[null,"Home Visits (SVR 2cc)",null,null,null,"Home Visits (SVR 2cc)"]
[null,"SRV 2cc Home Visits",4,null,null,"SRV 2cc Home Visits",2]

{"sheet":"Services Income","index":4,"n_rows":27,"n_cols":7,"rows_kept":27,"cut":false,"hidden":false,"merged":[[5,5,5,6],[12,5,12,6],[19,5,19,6],[1,5,1,6],[0,1,0,2],[19,1,19,2],[1,1,1,2],[5,1,5,2],[12,1,12,2]]}
[null,"Module 4, Section B: Individual and Family Services"]
[null,"Income and Asset Building Services",null,null,null,"Prior Year Reported"]
[null,"Name of CSBG Eligible Entity Reporting:",{"$f":"M4AgencyName","v":"Southeastern Utah Association of Local Governments"}]
[null,{"$f":"\"State: \" & M4StateName","v":"State: Utah"},{"$f":"\"DUNS: \" & M4DUNS","v":"DUNS: 097758627"}]
[null,"Income and Asset Building Services (SRV 3)","Unduplicated Number of \nIndividuals Served",null,null,"Income and Asset Building Services (SRV 3)","Unduplicated Number of \nIndividuals Served"]
[null,"Training and Counseling Services (SRV 3a-f)",null,null,null,"Training and Counseling Services (SRV 3a-f)"]
[null,"SRV 3a Financial Capability Skills Training",13,null,null,"SRV 3a Financial Capability Skills Training",5]
[null,"SRV 3b Financial Coaching/Counseling ",13,null,null,"SRV 3b Financial Coaching/Counseling ",5]
[null,"SRV 3c Financial Management Programs (including budgeting, credit management, credit repair, credit counseling, etc.)   ",15,null,null,"SRV 3c Financial Management Programs (including budgeting, credit management, credit repair, credit counseling, etc.)   ",9]
[null,"SRV 3d First-time Homebuyer Counseling",null,null,null,"SRV 3d First-time Homebuyer Counseling"]
[null,"SRV 3e Foreclosure Prevention Counseling",null,null,null,"SRV 3e Foreclosure Prevention Counseling"]
[null,"SRV 3f Small Business Start-Up and Development Counseling Sessions/Classes",null,null,null,"SRV 3f Small Business Start-Up and Development Counseling Sessions/Classes"]
[null,"Benefit Coordination and Advocacy (SRV 3g-l)",null,null,null,"Benefit Coordination and Advocacy (SRV 3g-l)"]
[null,"SRV 3g Child Support Payments",1,null,null,"SRV 3g Child Support Payments",2]
[null,"SRV 3h Health Insurance",1,null,null,"SRV 3h Health Insurance",2]
[null,"SRV 3i Social Security/SSI Payments",1,null,null,"SRV 3i Social Security/SSI Payments",1]
[null,"SRV 3j Veteran's Benefits",null,null,null,"SRV 3j Veteran's Benefits"]
[null,"SRV 3k TANF Benefits",null,null,null,"SRV 3k TANF Benefits"]
[null,"SRV 3l SNAP Benefits",15,null,null,"SRV 3l SNAP Benefits",8]
[null,"Asset Building (SRV 3m-o)",null,null,null,"Asset Building (SRV 3m-o)"]
[null,"SRV 3m Saving Accounts/IDAs and other asset building accounts",4,null,null,"SRV 3m Saving Accounts/IDAs and other asset building accounts"]
[null,"SRV 3n Other financial products (IRA accounts, MyRA, other retirement accounts, etc.)",null,null,null,"SRV 3n Other financial products (IRA accounts, MyRA, other retirement accounts, etc.)"]
[null,"SRV 3o VITA, EITC, or Other Tax Preparation programs",485,null,null,"SRV 3o VITA, EITC, or Other Tax Preparation programs"]
[null,"Loans And Grants (SRV 3p-r)",null,null,null,"Loans And Grants (SRV 3p-r)"]
[null,"SRV 3p Micro-loans",null,null,null,"SRV 3p Micro-loans"]
[null,"SRV 3q Business incubator/business development loans",null,null,null,"SRV 3q Business incubator/business development loans"]
[null,"SRV 3r Direct Financial Assistance",null,null,null,"SRV 3r Direct Financial Assistance"]

{"sheet":"Services Housing","index":5,"n_rows":31,"n_cols":7,"rows_kept":31,"cut":false,"hidden":false,"merged":[[25,5,25,6],[27,5,27,6],[1,5,1,6],[5,5,5,6],[11,5,11,6],[15,5,15,6],[20,5,20,6],[0,1,0,2],[20,1,20,2],[25,1,25,2],[27,1,27,2],[1,1,1,2],[5,1,5,2],[11,1,11,2],[15,1,15,2]]}
[null,"Module 4, Section B: Individual and Family Services"]
[null,"Housing Services",null,null,null,"Prior Year Reported"]
[null,"Name of CSBG Eligible Entity Reporting:",{"$f":"M4AgencyName","v":"Southeastern Utah Association of Local Governments"}]
[null,{"$f":"\"State: \" & M4StateName","v":"State: Utah"},{"$f":"\"DUNS: \" & M4DUNS","v":"DUNS: 097758627"}]
[null,"Housing Services (SRV 4)","Unduplicated Number of \nIndividuals Served",null,null,"Housing Services (SRV 4)","Unduplicated Number of \nIndividuals Served"]
[null,"Housing Payment Assistance (SRV 4a-e)",null,null,null,"Housing Payment Assistance (SRV 4a-e)"]
[null,"SRV 4a Financial Capability Skill Training ",7,null,null,"SRV 4a Financial Capability Skill Training "]
[null,"SRV 4b Financial Coaching/Counseling ",4,null,null,"SRV 4b Financial Coaching/Counseling "]
[null,"SRV 4c Rent Payments (includes Emergency Rent Payments)",338,null,null,"SRV 4c Rent Payments (includes Emergency Rent Payments)"]
[null,"SRV 4d Deposit Payments",46,null,null,"SRV 4d Deposit Payments"]
[null,"SRV 4e Mortgage Payments (includes Emergency Mortgage Payments)",4,null,null,"SRV 4e Mortgage Payments (includes Emergency Mortgage Payments)"]
[null,"Eviction Prevention Services (SRV 4f-h)",null,null,null,"Eviction Prevention Services (SRV 4f-h)"]
[null,"SRV 4f Eviction Counseling ",2,null,null,"SRV 4f Eviction Counseling "]
[null,"SRV 4g Landlord/Tenant Mediations",15,null,null,"SRV 4g Landlord/Tenant Mediations"]
[null,"SRV 4h Landlord/Tenant Rights Education ",4,null,null,"SRV 4h Landlord/Tenant Rights Education ",1]
[null,"Utility Payment Assistance (SRV 4i-l)",null,null,null,"Utility Payment Assistance (SRV 4i-l)"]
[null,"SRV 4i Utility Payments (LIHEAP-includes Emergency Utility Payments)",213,null,null,"SRV 4i Utility Payments (LIHEAP-includes Emergency Utility Payments)"]
[null,"SRV 4j Utility Deposits",null,null,null,"SRV 4j Utility Deposits"]
[null,"SRV 4k Utility Arrears Payments",127,null,null,"SRV 4k Utility Arrears Payments"]
[null,"SRV 4l Level Billing Assistance",null,null,null,"SRV 4l Level Billing Assistance"]
[null,"Housing Placement/Rapid Re-housing (SRV 4m-p)",null,null,null,"Housing Placement/Rapid Re-housing (SRV 4m-p)"]
[null,"SRV 4m Temporary Housing Placement (includes Emergency Shelters)",null,null,null,"SRV 4m Temporary Housing Placement (includes Emergency Shelters)"]
[null,"SRV 4n Transitional Housing Placements",null,null,null,"SRV 4n Transitional Housing Placements"]
[null,"SRV 4o Permanent Housing Placements ",null,null,null,"SRV 4o Permanent Housing Placements "]
[null,"SRV 4p Rental Counseling ",null,null,null,"SRV 4p Rental Counseling "]
[null,"Housing Maintenance & Improvements (SRV 4q)",null,null,null,"Housing Maintenance & Improvements (SRV 4q)"]
[null,"SRV 4q Home Repairs (e.g. structural, appliance, heating systems. etc.) (Including Emergency Home Repairs)",null,null,null,"SRV 4q Home Repairs (e.g. structural, appliance, heating systems. etc.) (Including Emergency Home Repairs)"]
[null,"Weatherization Services (SRV 4r-t)",null,null,null,"Weatherization Services (SRV 4r-t)"]
[null,"SRV 4r Independent-living Home Improvements (e.g. ramps, tub and shower grab bars, handicap accessible modifications, etc.)",null,null,null,"SRV 4r Independent-living Home Improvements (e.g. ramps, tub and shower grab bars, handicap accessible modifications, etc.)"]
[null,"SRV 4s Healthy Homes Services(e.g. reduction or elimination of lead, radon, carbon monoxide and/or fire hazards or electrical issues, etc.)",null,null,null,"SRV 4s Healthy Homes Services(e.g. reduction or elimination of lead, radon, carbon monoxide and/or fire hazards or electrical issues, etc.)"]
[null,"SRV 4t Energy Efficiency Improvements (e.g. insulation, air sealing, furnace repair, etc.)",null,null,null,"SRV 4t Energy Efficiency Improvements (e.g. insulation, air sealing, furnace repair, etc.)"]

{"sheet":"Services Health and Social","index":6,"n_rows":56,"n_cols":7,"rows_kept":56,"cut":false,"hidden":false,"merged":[[33,5,33,6],[38,5,38,6],[43,5,43,6],[49,5,49,6],[53,5,53,6],[1,5,1,6],[5,5,5,6],[16,5,16,6],[22,5,22,6],[25,5,25,6],[0,1,0,2],[53,1,53,2],[1,1,1,2],[5,1,5,2],[16,1,16,2],[22,1,22,2],[25,1,25,2],[33,1,33,2],[38,1,38,2],[43,1,43,2],[49,1,49,2]]}
[null,"Module 4, Section B: Individual and Family Services"]
[null,"Health and Social/Behavioral Development",null,null,null,"Prior Year Reported"]
[null,"Name of CSBG Eligible Entity Reporting:",{"$f":"M4AgencyName","v":"Southeastern Utah Association of Local Governments"}]
[null,{"$f":"\"State: \" & M4StateName","v":"State: Utah"},{"$f":"\"DUNS: \" & M4DUNS","v":"DUNS: 097758627"}]
[null,"Health and Social/Behavioral Development Services (SRV 5)","Unduplicated Number of \nIndividuals Served",null,null,"Health and Social/Behavioral Development Services (SRV 5)","Unduplicated Number of \nIndividuals Served"]
[null,"Health Services, Screening and Assessments (SRV 5a-j)",null,null,null,"Health Services, Screening and Assessments (SRV 5a-j)"]
[null,"SRV 5a Immunizations - COVID Vaccination",null,null,null,"SRV 5a Immunizations - COVID Vaccination"]
[null,"SRV 5b Physicals",null,null,null,"SRV 5b Physicals"]
[null,"SRV 5c Developmental Delay Screening",null,null,null,"SRV 5c Developmental Delay Screening"]
[null,"SRV 5d Vision  Screening",null,null,null,"SRV 5d Vision  Screening"]
[null,"SRV 5e Prescription Payments",null,null,null,"SRV 5e Prescription Payments"]
[null,"SRV 5f Doctor Visit Payments",null,null,null,"SRV 5f Doctor Visit Payments"]
[null,"SRV 5g Maternal/Child Health",null,null,null,"SRV 5g Maternal/Child Health"]
[null,"SRV 5h Nursing Care Sessions",null,null,null,"SRV 5h Nursing Care Sessions"]
[null," SRV 5i In-Home Affordable Seniors/Disabled Care Sessions\n(Nursing, Chores, Personal Care Services) ",null,null,null," SRV 5i In-Home Affordable Seniors/Disabled Care Sessions\n(Nursing, Chores, Personal Care Services) "]
[null,"SRV 5j Health Insurance Options Counseling",null,null,null,"SRV 5j Health Insurance Options Counseling"]
[null,"Reproductive Health Services (SRV 5k-o)",null,null,null,"Reproductive Health Services (SRV 5k-o)"]
[null,"SRV 5k Coaching Sessions",null,null,null,"SRV 5k Coaching Sessions"]
[null,"SRV 5l Family Planning Classes",null,null,null,"SRV 5l Family Planning Classes"]
[null,"SRV 5m Contraceptives",null,null,null,"SRV 5m Contraceptives"]
[null,"SRV 5n STI/HIV Prevention Counseling Sessions",null,null,null,"SRV 5n STI/HIV Prevention Counseling Sessions"]
[null,"SRV 5o STI/HIV Screenings",null,null,null,"SRV 5o STI/HIV Screenings"]
[null,"Wellness Education (SRV 5p-q)",null,null,null,"Wellness Education (SRV 5p-q)"]
[null,"SRV 5p Wellness Classes (stress reduction, medication management, mindfulness, etc.)",null,null,null,"SRV 5p Wellness Classes (stress reduction, medication management, mindfulness, etc.)"]
[null,"SRV 5q Exercise/Fitness ",null,null,null,"SRV 5q Exercise/Fitness "]
[null,"Mental/Behavioral Health (SRV 5r-x)",null,null,null,"Mental/Behavioral Health (SRV 5r-x)"]
[null,"SRV 5r Detoxification Sessions",null,null,null,"SRV 5r Detoxification Sessions"]
[null,"SRV 5s Substance Abuse Screenings",null,null,null,"SRV 5s Substance Abuse Screenings"]
[null,"SRV 5t Substance Abuse Counseling ",null,null,null,"SRV 5t Substance Abuse Counseling "]
[null,"SRV 5u Mental Health Assessments",7,null,null,"SRV 5u Mental Health Assessments"]
[null,"SRV 5v Mental Health Counseling ",7,null,null,"SRV 5v Mental Health Counseling "]
[null,"SRV 5w Crisis Response/Call-In Responses",null,null,null,"SRV 5w Crisis Response/Call-In Responses"]
[null,"SRV 5x Domestic Violence Programs",null,null,null,"SRV 5x Domestic Violence Programs"]
[null,"Support Groups (SRV 5y-aa)",null,null,null,"Support Groups (SRV 5y-aa)"]
[null,"SRV 5y Substance Abuse Support Group Meetings",null,null,null,"SRV 5y Substance Abuse Support Group Meetings"]
[null,"SRV 5z Domestic Violence Support Group Meetings",null,null,null,"SRV 5z Domestic Violence Support Group Meetings"]
[null,"SRV 5aa Mental Health Support Group Meetings",null,null,null,"SRV 5aa Mental Health Support Group Meetings"]
[null,"Health and Social/Behavioral Development Services (Cont'd.)","Unduplicated Number of \nIndividuals Served",null,null,"Health and Social/Behavioral Development Services (Cont'd.)","Unduplicated Number of \nIndividuals Served"]
[null,"Dental Services, Screenings and Exams (SRV 5bb-ee)",null,null,null,"Dental Services, Screenings and Exams (SRV 5bb-ee)"]
[null,"SRV 5bb Adult Dental Screening/Exams",null,null,null,"SRV 5bb Adult Dental Screening/Exams"]
[null,"SRV 5cc Adult Dental Services (including Emergency Dental Procedures)",null,null,null,"SRV 5cc Adult Dental Services (including Emergency Dental Procedures)"]
[null,"SRV 5dd Child Dental Screenings/Exams",null,null,null,"SRV 5dd Child Dental Screenings/Exams"]
[null,"SRV 5ee Child Dental Services (including Emergency Dental Procedures)",null,null,null,"SRV 5ee Child Dental Services (including Emergency Dental Procedures)"]
[null,"Nutrition and Food/Meals (SRV 5ff-jj)",null,null,null,"Nutrition and Food/Meals (SRV 5ff-jj)"]
[null,"SRV 5ff Skills Classes (Gardening, Cooking, Nutrition)",6,null,null,"SRV 5ff Skills Classes (Gardening, Cooking, Nutrition)",2]
[null,"SRV 5gg Community Gardening Activities",4,null,null,"SRV 5gg Community Gardening Activities",1]
[null,"SRV 5hh Incentives (e.g. gift card for food preparation, rewards for participation, etc.)",null,null,null,"SRV 5hh Incentives (e.g. gift card for food preparation, rewards for participation, etc.)"]
[null,"SRV 5ii Prepared Meals",null,null,null,"SRV 5ii Prepared Meals"]
[null,"SRV 5jj Food Distribution (Food Bags/Boxes, Food Share Program, Bags of Groceries)  ",2485,null,null,"SRV 5jj Food Distribution (Food Bags/Boxes, Food Share Program, Bags of Groceries)  ",54]
[null,"Family Skills Development (SRV 5kk-mm)",null,null,null,"Family Skills Development (SRV 5kk-mm)"]
[null,"SRV 5kk Family Mentoring Sessions",null,null,null,"SRV 5kk Family Mentoring Sessions"]
[null,"SRV 5ll Life Skills Coaching Sessions",null,null,null,"SRV 5ll Life Skills Coaching Sessions"]
[null,"SRV 5mm Parenting Classes",null,null,null,"SRV 5mm Parenting Classes"]
[null,"Emergency Hygiene Assistance (SRV 5nn-oo)",null,null,null,"Emergency Hygiene Assistance (SRV 5nn-oo)"]
[null,"SRV 5nn Kits/boxes",27,null,null,"SRV 5nn Kits/boxes"]
[null,"SRV 5oo Hygiene Facility Utilizations (e.g. showers, toilets, sinks)",null,null,null,"SRV 5oo Hygiene Facility Utilizations (e.g. showers, toilets, sinks)"]

{"sheet":"Services Civic Eng. & Comm Inv.","index":7,"n_rows":12,"n_cols":7,"rows_kept":12,"cut":false,"hidden":false,"merged":[[1,1,1,2],[0,1,0,2],[1,5,1,6]]}
[null,"Module 4, Section B: Individual and Family Services"]
[null,"Civic Engagement and Community Involvement",null,null,null,"Prior Year Reported"]
[null,"Name of CSBG Eligible Entity Reporting:",{"$f":"M4AgencyName","v":"Southeastern Utah Association of Local Governments"}]
[null,{"$f":"\"State: \" & M4StateName","v":"State: Utah"},{"$f":"\"DUNS: \" & M4DUNS","v":"DUNS: 097758627"}]
[null,"Civic Engagement and Community Involvement Services (SRV 6a-f)","Unduplicated Number of \nIndividuals Served",null,null,"Civic Engagement and Community Involvement Services (SRV 6a-f)","Unduplicated Number of \nIndividuals Served"]
[null,"SRV 6a Voter Education and Access",null,null,null,"SRV 6a Voter Education and Access"]
[null,"Leadership Training",null,null,null,"Leadership Training"]
[null,"SRV 6b Leadership Training",4,null,null,"SRV 6b Leadership Training",2]
[null,"SRV 6c Tri-partite Board Membership",12,null,null,"SRV 6c Tri-partite Board Membership"]
[null,"SRV 6d Citizenship Classes",null,null,null,"SRV 6d Citizenship Classes"]
[null,"SRV 6e Getting Ahead Classes",24,null,null,"SRV 6e Getting Ahead Classes"]
[null,"SRV 6f Volunteer Training ",null,null,null,"SRV 6f Volunteer Training "]

{"sheet":"Support Services","index":8,"n_rows":35,"n_cols":7,"rows_kept":35,"cut":false,"hidden":false,"merged":[[26,5,26,6],[28,5,28,6],[30,5,30,6],[32,5,32,6],[13,5,13,6],[16,5,16,6],[18,5,18,6],[22,5,22,6],[24,5,24,6],[1,5,1,6],[5,5,5,6],[7,5,7,6],[9,5,9,6],[11,5,11,6],[32,1,32,2],[0,1,0,2],[9,1,9,2],[1,1,1,2],[5,1,5,2],[7,1,7,2],[26,1,26,2],[28,1,28,2],[30,1,30,2],[11,1,11,2],[13,1,13,2],[16,1,16,2],[18,1,18,2],[22,1,22,2],[24,1,24,2]]}
[null,"Module 4, Section B: Individual and Family Services"]
[null,"Services Supporting Multiple Domains",null,null,null,"Prior Year Reported"]
[null,"Name of CSBG Eligible Entity Reporting:",{"$f":"M4AgencyName","v":"Southeastern Utah Association of Local Governments"}]
[null,{"$f":"\"State: \" & M4StateName","v":"State: Utah"},{"$f":"\"DUNS: \" & M4DUNS","v":"DUNS: 097758627"}]
[null,"Services Supporting Multiple Domains (SRV 7)","Unduplicated Number of \nIndividuals Served",null,null,"Services Supporting Multiple Domains (SRV 7)","Unduplicated Number of \nIndividuals Served"]
[null,"Case Management (SRV 7a)",null,null,null,"Case Management (SRV 7a)"]
[null,"SRV 7a Case Management",62,null,null,"SRV 7a Case Management",29]
[null,"Eligibility Determinations (SRV 7b)",null,null,null,"Eligibility Determinations (SRV 7b)"]
[null,"SRV 7b Eligibility Determinations",75,null,null,"SRV 7b Eligibility Determinations",29]
[null,"Referrals (SRV 7c)",null,null,null,"Referrals (SRV 7c)"]
[null,"SRV 7c Referrals",179,null,null,"SRV 7c Referrals",54]
[null,"Transportation Services (SRV 7d)",null,null,null,"Transportation Services (SRV 7d)"]
[null,"SRV 7d Transportation Services (e.g. bus passes, bus transport, support for auto purchase or repair; including emergency services)",null,null,null,"SRV 7d Transportation Services (e.g. bus passes, bus transport, support for auto purchase or repair; including emergency services)"]
[null,"Childcare (SRV 7e-f)",null,null,null,"Childcare (SRV 7e-f)"]
[null,"SRV 7e Child Care subsidies",null,null,null,"SRV 7e Child Care subsidies"]
[null,"SRV 7f Child Care payments",null,null,null,"SRV 7f Child Care payments"]
[null,"Eldercare (SRV 7g)",null,null,null,"Eldercare (SRV 7g)"]
[null,"SRV 7g Day Centers",null,null,null,"SRV 7g Day Centers"]
[null,"Identification Documents (SRV 7h-j)",null,null,null,"Identification Documents (SRV 7h-j)"]
[null,"SRV 7h Birth Certificate ",null,null,null,"SRV 7h Birth Certificate "]
[null,"SRV 7i Social Security Card ",null,null,null,"SRV 7i Social Security Card "]
[null,"SRV 7j Driver's License ",2,null,null,"SRV 7j Driver's License ",1]
[null,"Re-Entry Services (SRV 7k)",null,null,null,"Re-Entry Services (SRV 7k)"]
[null,"SRV 7k Criminal Record Expungements",null,null,null,"SRV 7k Criminal Record Expungements"]
[null,"Immigration Support Services (SRV 7l)",null,null,null,"Immigration Support Services (SRV 7l)"]
[null,"SRV 7l Immigration Support Services (relocation, food, clothing)",null,null,null,"SRV 7l Immigration Support Services (relocation, food, clothing)"]
[null,"Legal Assistance (includes emergency legal assistance) (SRV 7m)",null,null,null,"Legal Assistance (includes emergency legal assistance) (SRV 7m)"]
[null,"SRV 7m Legal Assistance ",null,null,null,"SRV 7m Legal Assistance "]
[null,"Emergency Clothing Assistance (SRV 7n)",null,null,null,"Emergency Clothing Assistance (SRV 7n)"]
[null,"SRV 7n Emergency Clothing Assistance",null,null,null,"SRV 7n Emergency Clothing Assistance"]
[null,"Mediation/Customer Advocacy Interventions (debt forgiveness, negotiations or issues with landlords, coordinating with other services or government) (SRV 7o)",null,null,null,"Mediation/Customer Advocacy Interventions (debt forgiveness, negotiations or issues with landlords, coordinating with other services or government) (SRV 7o)"]
[null,"SRV 7o Mediation/Customer Advocacy Interventions",null,null,null,"SRV 7o Mediation/Customer Advocacy Interventions"]
[null,"CSBG CARES Support Services (7p - 7q)",null,null,null,"CSBG CARES Support Services (7p - 7q)"]
[null,"SRV 7p Personal Protective Equipment (PPE)",null,null,null,"SRV 7p Personal Protective Equipment (PPE)"]
[null,"SRV 7q COVID Testing",null,null,null,"SRV 7q COVID Testing"]

{"sheet":"Identification","index":9,"n_rows":12,"n_cols":4,"rows_kept":12,"cut":false,"hidden":true,"merged":[]}
[null,null,"Version:","M4_C-2021.1"]
[]
[null,null,"State:","Utah"]
[null,null,"Name of CSBG Eligible Entity Reporting:","Southeastern Utah Association of Local Governments"]
[null,null,"DUNS Number:","097758627"]
[null,null,"Organization:"]
[null,null,"Program Acronym:"]
[null,null,"Lead Agency:","UTAH"]
[null,null,"Grant Number:"]
[]
[null,null,"Report Period Start Date:","2018-10-01"]
[null,null,"Report Period End Date:","2019-09-30"]

{"sheet":"XML Export Map","index":10,"n_rows":890,"n_cols":10,"rows_kept":890,"cut":false,"hidden":true,"merged":[]}
[]
["Question/Reference","Smartform Range Name","Address","Value","Type","XML Export Name for DB","Max Length"]
[null,null,null,null,null,null,null,null,{"$f":"FIND(\"]\",J3)","v":93},{"$f":"CELL(\"address\",INDIRECT(B4))","v":"'[FY21_UT_CARES_M4_Southeastern_Utah_Association_of_Local_Governments_097758627 Revised.xlsm]Identification'!$D$8"}]
["leadAgency","M4LeadAgency",{"$f":"\"'='\" & MID(CELL(\"address\",INDIRECT(B4)),$I$3+1,100)","v":"'='Identification'!$D$8"},{"$f":"M4LeadAgency","v":"UTAH"},"Text","GRANTEENAME",100]
["State Name","M4StateName",{"$f":"\"'='\" & MID(CELL(\"address\",INDIRECT(B5)),$I$3+1,100)","v":"'='Identification'!$D$3"},{"$f":"M4StateName","v":"Utah"},"Text",null,null,null,null,"C:\\Users\\mkamran\\OneDrive - NASCSP\\Device\\Downloads\\Copy of CSBG CARES Supplemental Annual Report Module 4_4.28.21.xml"]
["Agency Name","M4AgencyName",{"$f":"\"'='\" & MID(CELL(\"address\",INDIRECT(B6)),$I$3+1,100)","v":"'='Identification'!$D$4"},null,"Text","ELIGIBLEENTITY"]
["orgAbbrev","M4OrgAbbrev",{"$f":"\"'='\" & MID(CELL(\"address\",INDIRECT(B7)),$I$3+1,100)","v":"'='Identification'!$D$6"},"ACF","Text","orgAbbrev"]
["programAcronym","M4ProgramAcronym",{"$f":"\"'='\" & MID(CELL(\"address\",INDIRECT(B8)),$I$3+1,100)","v":"'='Identification'!$D$7"},"CSC3","Text","programAcronym"]
["DUNS Number","M4Duns",{"$f":"\"'='\" & MID(CELL(\"address\",INDIRECT(B9)),$I$3+1,100)","v":"'='Identification'!$D$5"},{"$f":"M4DUNS","v":"097758627"},"Text","duns"]
["reportPeriodStartDate","M4ReportPeriodStartDate",{"$f":"\"'='\" & MID(CELL(\"address\",INDIRECT(B10)),$I$3+1,100)","v":"'='Identification'!$D$11"},"2019-10-01","Date","reportPeriodStartDate"]
["reportPeriodEndDate","M4ReportPeriodEndDate",{"$f":"\"'='\" & MID(CELL(\"address\",INDIRECT(B11)),$I$3+1,100)","v":"'='Identification'!$D$12"},"2020-09-30","Date","reportPeriodEndDate"]
["grantNumber","M4GrantNumber",{"$f":"\"'='\" & MID(CELL(\"address\",INDIRECT(B12)),$I$3+1,100)","v":"'='Identification'!$D$9"},null,"Text","grantNumber"]
["subGrantee",null,null,true,"True/False","subGrantee"]
["All_A","M4CA1Individuals",null,null,"Number","M4CA1Individuals"]
["All_B","M4CB1Households",null,null,"Number","M4CB1Households"]
["All_C.1a","M4CC1aGenderMale",null,null,"Number","M4CC1aGenderMale"]
["All_C.1b","M4CC1bGenderFemale",null,null,"Number","M4CC1bGenderFemale"]
["All_C.6a.1","M4CC6a1EthnicityHisp",null,null,"Number","M4CC6a1EthnicityHisp"]
["All_C.1c","M4CC1cGenderOther",null,null,"Number","M4CC1cGenderOther"]
["All_C.6a.2","M4CC6a2EthnicityNonHisp",null,null,"Number","M4CC6a2EthnicityNonHisp"]
["All_C.1d","M4CC1dGenderUnk",null,null,"Number","M4CC1dGenderUnk"]
["All_C.6a.3","M4CC6a3EthnicityUnk",null,null,"Number","M4CC6a3EthnicityUnk"]
["All_C.1e","M4CC1eGenderTotal",null,null,"Number","M4CC1eGenderTotal"]
["All_C.6a.4","M4CC6a4EthnicityTotal",null,null,"Number","M4CC6a4EthnicityTotal"]
["All_C.2a","M4CC2aAge0to5",null,null,"Number","M4CC2aAge0to5"]
["All_C.6b.1","M4CC6b1RaceAmericanIndian",null,null,"Number","M4CC6b1RaceAmericanIndian"]
["All_C.2b","M4CC2bAge6to13",null,null,"Number","M4CC2bAge6to13"]
["All_C.6b.2","M4CC6b2RaceAsian",null,null,"Number","M4CC6b2RaceAsian"]
["All_C.2c","M4CC2cAge14to17",null,null,"Number","M4CC2cAge14to17"]
["All_C.6b.3","M4CC6b3RaceBlack",null,null,"Number","M4CC6b3RaceBlack"]
["All_C.2d","M4CC2dAge18to24",null,null,"Number","M4CC2dAge18to24"]
["All_C.6b.4","M4CC6b4RaceHawaiian",null,null,"Number","M4CC6b4RaceHawaiian"]
["All_C.2e","M4CC2eAge25to44",null,null,"Number","M4CC2eAge25to44"]
["All_C.6b.5","M4CC6b5RaceWhite",null,null,"Number","M4CC6b5RaceWhite"]
["All_C.2f","M4CC2fAge45to54",null,null,"Number","M4CC2fAge45to54"]
["All_C.6b.6","M4CC6b6RaceOther",null,null,"Number","M4CC6b6RaceOther"]
["All_C.2g","M4CC2gAge55to59",null,null,"Number","M4CC2gAge55to59"]
["All_C.6b.7","M4CC6b7RaceMulti",null,null,"Number","M4CC6b7RaceMulti"]
["All_C.2h","M4CC2hAge60to64",null,null,"Number","M4CC2hAge60to64"]
["All_C.6b.8","M4CC6b8RaceUnk",null,null,"Number","M4CC6b8RaceUnk"]
["All_C.2i","M4CC2iAge65to74",null,null,"Number","M4CC2iAge65to74"]
["All_C.6b.9","M4CC6b9RaceTotal",null,null,"Number","M4CC6b9RaceTotal"]
["All_C.2j","M4CC2jAge75plus",null,null,"Number","M4CC2jAge75plus"]
["All_C.2k","M4CC2kAgeUnk",null,null,"Number","M4CC2kAgeUnk"]
["All_C.2l","M4CC2lAgeTotal",null,null,"Number","M4CC2lAgeTotal"]
["All_C.7a","M4CC7aMilitaryVeteran",null,null,"Number","M4CC7aMilitaryVeteran"]
["All_C.7b","M4CC7bMilitaryActive",null,null,"Number","M4CC7bMilitaryActive"]
["All_C.7c","M4CC7cNoMilitaryStatus",null,null,"Number","M4CC7cNoMilitaryStatus"]
["All_C.7d","M4CC7dMilitaryUnk",null,null,"Number","M4CC7dMilitaryUnk"]
["All_C.3a_14","M4CC3aEduGrade8Age14to24",null,null,"Number","M4CC3aEduGrade8Age14to24"]
["All_C.3a_25","M4CC3aEduGrade8Age25plus",null,null,"Number","M4CC3aEduGrade8Age25plus"]
["All_C.7e","M4CC7eMilitaryTotal",null,null,"Number","M4CC7eMilitaryTotal"]
["All_C.3b_14","M4CC3bEduGrade12Age24und",null,null,"Number","M4CC3bEduGrade12Age24und"]
["All_C.3b_25","M4CC3bEduGrade12Age25plus",null,null,"Number","M4CC3bEduGrade12Age25plus"]
["All_C.3c_14","M4CC3cEduHSGradAge24und",null,null,"Number","M4CC3cEduHSGradAge24und"]
["All_C.3c_25","M4CC3cEduHSGradAge25plus",null,null,"Number","M4CC3cEduHSGradAge25plus"]
["All_C.3d_14","M4CC3dEquivDiplomaAge24und",null,null,"Number","M4CC3dEquivDiplomaAge24und"]
["All_C.3d_25","M4CC3dEquivDiplomaAge25plus",null,null,"Number","M4CC3dEquivDiplomaAge25plus"]
["All_C.3e_14","M4CC3eEduPostSecAge24und",null,null,"Number","M4CC3eEduPostSecAge24und"]
["All_C.3e_25","M4CC3eEduPostSecAge25plus",null,null,"Number","M4CC3eEduPostSecAge25plus"]
["All_C.3f_14","M4CC3fEduCollegeGradAge24und",null,null,"Number","M4CC3fEduCollegeGradAge24und"]
["All_C.3f_25","M4CC3fEduCollegeGradAge25plus",null,null,"Number","M4CC3fEduCollegeGradAge25plus"]
["All_C.3g_14","M4CC3gEduGradPostSecAge24und",null,null,"Number","M4CC3gEduGradPostSecAge24und"]
["All_C.3g_25","M4CC3gEduGradPostSecAge25plus",null,null,"Number","M4CC3gEduGradPostSecAge25plus"]
["All_C.3h_14","M4CC3hEduUnkAge24und",null,null,"Number","M4CC3hEduUnkAge24und"]
["All_C.3h_25","M4CC3hEduUnkAge25plus",null,null,"Number","M4CC3hEduUnkAge25plus"]
["All_C.8a","M4CC8aWorkEmployFT",null,null,"Number","M4CC8aWorkEmployFT"]
["All_C.3i_14","M4CC3iEduTotalAge24und",null,null,"Number","M4CC3iEduTotalAge24und"]
["All_C.3i_25","M4CC3iEduTotalAge25plus",null,null,"Number","M4CC3iEduTotalAge25plus"]
["All_C.8b","M4CC8bWorkEmployPT",null,null,"Number","M4CC8bWorkEmployPT"]
["All_C.8c","M4CC8cWorkSeasonal",null,null,"Number","M4CC8cWorkSeasonal"]
["All_C.8d","M4CC8dWorkUnemployShort",null,null,"Number","M4CC8dWorkUnemployShort"]
["All_C.8e","M4CC8eWorkUnemployLong",null,null,"Number","M4CC8eWorkUnemployLong"]
["All_C.8f","M4CC8fWorkUnemployNLF",null,null,"Number","M4CC8fWorkUnemployNLF"]
["All_C.8g","M4CC8gWorkRetired",null,null,"Number","M4CC8gWorkRetired"]
["All_C.8h","M4CC8hWorkUnk",null,null,"Number","M4CC8hWorkUnk"]
["All_C.8i","M4CC8iWorkTotal",null,null,"Number","M4CC8iWorkTotal"]
["All_C.4a","M4CC4aDisconnectedYouth",null,null,"Number","M4CC4aDisconnectedYouth"]
["All_C.5a_Yes","M4CC5aHealthDisableYes",null,null,"Number","M4CC5aHealthDisableYes"]
["All_C.5a_Unknown","M4CC5aHealthDisableUnk",null,null,"Number","M4CC5aHealthDisableUnk"]
["All_C.5a_No","M4CC5aHealthDisableNo",null,null,"Number","M4CC5aHealthDisableNo"]
["All_C.5b_Yes","M4CC5b1HealthInsuranceYes",null,null,"Number","M4CC5b1HealthInsuranceYes"]
["All_C.5b_No","M4CC5b2HealthInsuranceNo",null,null,"Number","M4CC5b2HealthInsuranceNo"]
["All_C.5b_Unknown","M4CC5b3HealthInsuranceUnk",null,null,"Number","M4CC5b3HealthInsuranceUnk"]
["All_C.5c.1","M4CC5c1InsuranceMedicaid",null,null,"Number","M4CC5c1InsuranceMedicaid"]
["All_C.5c.2","M4CC5c2InsuranceMedicare",null,null,"Number","M4CC5c2InsuranceMedicare"]
["All_C.5c.3","M4CC5c3InsuranceStateChild",null,null,"Number","M4CC5c3InsuranceStateChild"]
["All_C.5c.4","M4CC5c4InsuranceStateAdult",null,null,"Number","M4CC5c4InsuranceStateAdult"]
["All_C.5c.5","M4CC5c5InsuranceMilitary",null,null,"Number","M4CC5c5InsuranceMilitary"]
["All_C.5c.6","M4CC5c6InsuranceDirectPurch",null,null,"Number","M4CC5c6InsuranceDirectPurch"]
["All_C.5c.7","M4CC5c7InsuranceEmploy",null,null,"Number","M4CC5c7InsuranceEmploy"]
["All_C.5c.8","M4CC5c8InsuranceUnk",null,null,"Number","M4CC5c8InsuranceUnk"]
["All_C.5c.9","M4CC5c9InsuranceTotal",null,null,"Number","M4CC5c9InsuranceTotal"]
["All_D.9a","M4CD9aHHTypeOne",null,null,"Number","M4CD9aHHTypeOne"]
["All_D.13a","M4CD13aIncomeEmployOnly",null,null,"Number","M4CD13aIncomeEmployOnly"]
["All_D.9b","M4CD9bHHTypeTwoNoChild",null,null,"Number","M4CD9bHHTypeTwoNoChild"]
["All_D.13b","M4CD13bIncomeEmployOther",null,null,"Number","M4CD13bIncomeEmployOther"]
["All_D.9c","M4CD9cHHTypeSingleParentFem",null,null,"Number","M4CD9cHHTypeSingleParentFem"]
["All_D.13c","M4CD13cIncomeEmployOtherNoncash",null,null,"Number","M4CD13cIncomeEmployOtherNoncash"]
["All_D.9d","M4CD9dHHTypeSingleParentMale",null,null,"Number","M4CD9dHHTypeSingleParentMale"]
["All_D.13d","M4CD13dIncomeEmployNoncash",null,null,"Number","M4CD13dIncomeEmployNoncash"]
["All_D.9e","M4CD9eHHTypeTwoParent",null,null,"Number","M4CD9eHHTypeTwoParent"]
["All_D.13e","M4CD13eIncomeOtherOnly",null,null,"Number","M4CD13eIncomeOtherOnly"]
["All_D.9f","M4CD9fHHTypeUnrelAdultsChild",null,null,"Number","M4CD9fHHTypeUnrelAdultsChild"]
["All_D.13f","M4CD13fIncomeOtherNoncash",null,null,"Number","M4CD13fIncomeOtherNoncash"]
["All_D.9g","M4CD9gHHTypeMultigen",null,null,"Number","M4CD9gHHTypeMultigen"]
["All_D.13g","M4CD13gIncomeNone",null,null,"Number","M4CD13gIncomeNone"]
["All_D.9h","M4CD9hHHTypeOther",null,null,"Number","M4CD9hHHTypeOther"]
["All_D.13h","M4CD13hIncomeNoncashOnly",null,null,"Number","M4CD13hIncomeNoncashOnly"]
["All_D.9i","M4CD9iHHTypeUnk",null,null,"Number","M4CD9iHHTypeUnk"]
["All_D.13i","M4CD13iIncomeUnk",null,null,"Number","M4CD13iIncomeUnk"]
["All_D.9j","M4CD9jHHTypeTotal",null,null,"Number","M4CD9jHHTypeTotal"]
["All_D.13j","M4CD13jIncomeTotal",null,null,"Number","M4CD13jIncomeTotal"]
["All_D.10a","M4CD10aHHSize1",null,null,"Number","M4CD10aHHSize1"]
["All_D.10b","M4CD10bHHSize2",null,null,"Number","M4CD10bHHSize2"]
["All_D.10c","M4CD10cHHSize3",null,null,"Number","M4CD10cHHSize3"]
["All_D.10d","M4CD10dHHSize4",null,null,"Number","M4CD10dHHSize4"]
["All_D.10e","M4CD10eHHSize5",null,null,"Number","M4CD10eHHSize5"]
["All_D.14a","M4CD14aOtherincTANF",null,null,"Number","M4CD14aOtherincTANF"]
["All_D.10f","M4CD10fHHSize6plus",null,null,"Number","M4CD10fHHSize6plus"]
["All_D.14b","M4CD14bOtherincSSI",null,null,"Number","M4CD14bOtherincSSI"]
["All_D.10g","M4CD10gHHSizeUnk",null,null,"Number","M4CD10gHHSizeUnk"]
["All_D.14c","M4CD14cOtherincSSDI",null,null,"Number","M4CD14cOtherincSSDI"]
["All_D.10h","M4CD10hHHSizeTotal",null,null,"Number","M4CD10hHHSizeTotal"]
["All_D.14d","M4CD14dOtherincVADisComp",null,null,"Number","M4CD14dOtherincVADisComp"]
["All_D.14e","M4CD14eOtherincVADisPension",null,null,"Number","M4CD14eOtherincVADisPension"]
["All_D.14f","M4CD14fOtherincPrivateDis",null,null,"Number","M4CD14fOtherincPrivateDis"]
["All_D.14g","M4CD14gOtherincWorkerComp",null,null,"Number","M4CD14gOtherincWorkerComp"]
["All_D.14h","M4CD14hOtherincRetirement",null,null,"Number","M4CD14hOtherincRetirement"]
["All_D.14i","M4CD14iOtherincPension",null,null,"Number","M4CD14iOtherincPension"]
["All_D.14j","M4CD14jOtherincChildSupp",null,null,"Number","M4CD14jOtherincChildSupp"]
["All_D.11a","M4CD11aHousingOwn",null,null,"Number","M4CD11aHousingOwn"]
["All_D.14k","M4CD14kOtherincAlimony",null,null,"Number","M4CD14kOtherincAlimony"]
["All_D.11b","M4CD11bHousingRent",null,null,"Number","M4CD11bHousingRent"]
["All_D.14l","M4CD14lOtherincUnemploy",null,null,"Number","M4CD14lOtherincUnemploy"]
["All_D.11c","M4CD11cHousingOtherPerm",null,null,"Number","M4CD11cHousingOtherPerm"]
["All_D.14m","M4CD14mOtherincEITC",null,null,"Number","M4CD14mOtherincEITC"]
["All_D.11d","M4CD11dHousingHomeless",null,null,"Number","M4CD11dHousingHomeless"]
["All_D.14n","M4CD14nOtherincOther",null,null,"Number","M4CD14nOtherincOther"]
["All_D.11e","M4CD11eHousingOther",null,null,"Number","M4CD11eHousingOther"]
["All_D.14o","M4CD14oOtherincUnk",null,null,"Number","M4CD14oOtherincUnk"]
["All_D.11f","M4CD11fHousingUnk",null,null,"Number","M4CD11fHousingUnk"]
["All_D.11g","M4CD11gHousingTotal",null,null,"Number","M4CD11gHousingTotal"]
["All_D.15a","M4CD15aNoncashSNAP",null,null,"Number","M4CD15aNoncashSNAP"]
["All_D.15b","M4CD15bNoncashWIC",null,null,"Number","M4CD15bNoncashWIC"]
["All_D.15c","M4CD15cNoncashLIHEAP",null,null,"Number","M4CD15cNoncashLIHEAP"]
["All_D.12a","M4CD12aPov50",null,null,"Number","M4CD12aPov50"]
["All_D.15d","M4CD15dNoncashHCVP",null,null,"Number","M4CD15dNoncashHCVP"]
["All_D.12b","M4CD12bPov51to75",null,null,"Number","M4CD12bPov51to75"]
["All_D.15e","M4CD15eNoncashPubHouse",null,null,"Number","M4CD15eNoncashPubHouse"]
["All_D.12c","M4CD12cPov76to100",null,null,"Number","M4CD12cPov76to100"]
["All_D.15f","M4CD15fNoncashPermHouse",null,null,"Number","M4CD15fNoncashPermHouse"]
["All_D.12d","M4CD12dPov101to125",null,null,"Number","M4CD12dPov101to125"]
["All_D.15g","M4CD15gNoncashHUDVASH",null,null,"Number","M4CD15gNoncashHUDVASH"]
["All_D.12e","M4CD12ePov126to150",null,null,"Number","M4CD12ePov126to150"]
["All_D.15h","M4CD15hNoncashChildcareVouch",null,null,"Number","M4CD15hNoncashChildcareVouch"]
["All_D.12f","M4CD12fPov151to175",null,null,"Number","M4CD12fPov151to175"]
["All_D.15i","M4CD15iNoncashACA",null,null,"Number","M4CD15iNoncashACA"]
["All_D.12g","M4CD12gPov176to200",null,null,"Number","M4CD12gPov176to200"]
["All_D.15j","M4CD15jNoncashOther",null,null,"Number","M4CD15jNoncashOther"]
["All_D.12h","M4CD12hPov201to250",null,null,"Number","M4CD12hPov201to250"]
["All_D.15k","M4CD15kNoncashUnk",null,null,"Number","M4CD15kNoncashUnk"]
["All_D.12i","M4CD12iPov250plus",null,null,"Number","M4CD12iPov250plus"]
["All_D.12j","M4CD12jPovUnk",null,null,"Number","M4CD12jPovUnk"]
["All_D.12k","M4CD12kPovTotal",null,null,"Number","M4CD12kPovTotal"]
["Mod 4 Sec C Sub E Item 1a - Program Name","M4CE1aIndivNotIncluded1",null,null,"Text","M4CE1aIndivNotIncluded1"]
["Mod 4 Sec C Sub E Item 1b - Number of Individuals","M4CE1bIndivNotIncluded1",null,null,"Number","M4CE1bIndivNotIncluded1"]
["Mod 4 Sec C Sub E Item 2a - Program Name","M4CE2aIndivNotIncluded2",null,null,"Text","M4CE2aIndivNotIncluded2"]
["Mod 4 Sec C Sub E Item 2b - Number of Individuals","M4CE2bIndivNotIncluded2",null,null,"Number","M4CE2bIndivNotIncluded2"]
["Mod 4 Sec C Sub E Item 3a - Program Name","M4CE3aIndivNotIncluded3",null,null,"Text","M4CE3aIndivNotIncluded3"]
["Mod 4 Sec C Sub E Item 3b - Number of Individuals","M4CE3bIndivNotIncluded3",null,null,"Number","M4CE3bIndivNotIncluded3"]
["Mod 4 Sec C Sub E Item 4a - Program Name","M4CE4aIndivNotIncluded4",null,null,"Text","M4CE4aIndivNotIncluded4"]
["Mod 4 Sec C Sub E Item 4b - Number of Individuals","M4CE4bIndivNotIncluded4",null,null,"Number","M4CE4bIndivNotIncluded4"]
["Mod 4 Sec C Sub E Item 5a - Program Name","M4CE5aIndivNotIncluded5",null,null,"Text","M4CE5aIndivNotIncluded5"]
["Mod 4 Sec C Sub E Item 5b - Number of Individuals","M4CE5bIndivNotIncluded5",null,null,"Number","M4CE5bIndivNotIncluded5"]
["Mod 4 Sec C Sub E Item 6a - Program Name","M4CE6aIndivNotIncluded6",null,null,"Text","M4CE6aIndivNotIncluded6"]
["Mod 4 Sec C Sub E Item 6b - Number of Individuals","M4CE6bIndivNotIncluded6",null,null,"Number","M4CE6bIndivNotIncluded6"]
["Mod 4 Sec C Sub E Item 7a - Program Name","M4CE7aIndivNotIncluded7",null,null,"Text","M4CE7aIndivNotIncluded7"]
["Mod 4 Sec C Sub E Item 7b - Number of Individuals","M4CE7bIndivNotIncluded7",null,null,"Number","M4CE7bIndivNotIncluded7"]
["Mod 4 Sec C Sub E Item 8a - Program Name","M4CE8aIndivNotIncluded8",null,null,"Text","M4CE8aIndivNotIncluded8"]
["Mod 4 Sec C Sub E Item 8b - Number of Individuals","M4CE8bIndivNotIncluded8",null,null,"Number","M4CE8bIndivNotIncluded8"]
["Mod 4 Sec C Sub E Item 9a - Program Name","M4CE9aIndivNotIncluded9",null,null,"Text","M4CE9aIndivNotIncluded9"]
["Mod 4 Sec C Sub E Item 9b - Number of Individuals","M4CE9bIndivNotIncluded9",null,null,"Number","M4CE9bIndivNotIncluded9"]
["Mod 4 Sec C Sub E Item 10a - Program Name","M4CE10aIndivNotIncluded10",null,null,"Text","M4CE10aIndivNotIncluded10"]
["Mod 4 Sec C Sub E Item 10b - Number of Individuals","M4CE10bIndivNotIncluded10",null,null,"Number","M4CE10bIndivNotIncluded10"]
["Mod 4 Sec C Sub E Item 11a - Program Name","M4CE11aIndivNotIncluded11",null,null,"Text","M4CE11aIndivNotIncluded11"]
["Mod 4 Sec C Sub E Item 11b - Number of Individuals","M4CE11bIndivNotIncluded11",null,null,"Number","M4CE11bIndivNotIncluded11"]
["Mod 4 Sec C Sub E Item 12a - Program Name","M4CE12aIndivNotIncluded12",null,null,"Text","M4CE12aIndivNotIncluded12"]
["Mod 4 Sec C Sub E Item 12b - Number of Individuals","M4CE12bIndivNotIncluded12",null,null,"Number","M4CE12bIndivNotIncluded12"]
["Mod 4 Sec C Sub E Item 13a - Program Name","M4CE13aIndivNotIncluded13",null,null,"Text","M4CE13aIndivNotIncluded13"]
["Mod 4 Sec C Sub E Item 13b - Number of Individuals","M4CE13bIndivNotIncluded13",null,null,"Number","M4CE13bIndivNotIncluded13"]
["Mod 4 Sec C Sub E Item 14a - Program Name","M4CE14aIndivNotIncluded14",null,null,"Text","M4CE14aIndivNotIncluded14"]
["Mod 4 Sec C Sub E Item 14b - Number of Individuals","M4CE14bIndivNotIncluded14",null,null,"Number","M4CE14bIndivNotIncluded14"]
["Mod 4 Sec C Sub E Item 15a - Program Name","M4CE15aIndivNotIncluded15",null,null,"Text","M4CE15aIndivNotIncluded15"]
["Mod 4 Sec C Sub E Item 15b - Number of Individuals","M4CE15bIndivNotIncluded15",null,null,"Number","M4CE15bIndivNotIncluded15"]
["Mod 4 Sec C Sub F Item 1a - Program Name","M4CF1aHHNotIncluded1",null,null,"Text","M4CF1aHHNotIncluded1"]
["Mod 4 Sec C Sub F Item 1b - Number of Individuals","M4CF1bHHNotIncluded1",null,null,"Number","M4CF1bHHNotIncluded1"]
["Mod 4 Sec C Sub F Item 2a - Program Name","M4CF2aHHNotIncluded2",null,null,"Text","M4CF2aHHNotIncluded2"]
["Mod 4 Sec C Sub F Item 2b - Number of Individuals","M4CF2bHHNotIncluded2",null,null,"Number","M4CF2bHHNotIncluded2"]
["Mod 4 Sec C Sub F Item 3a - Program Name","M4CF3aHHNotIncluded3",null,null,"Text","M4CF3aHHNotIncluded3"]
["Mod 4 Sec C Sub F Item 3b - Number of Individuals","M4CF3bHHNotIncluded3",null,null,"Number","M4CF3bHHNotIncluded3"]
["Mod 4 Sec C Sub F Item 4a - Program Name","M4CF4aHHNotIncluded4",null,null,"Text","M4CF4aHHNotIncluded4"]
["Mod 4 Sec C Sub F Item 4b - Number of Individuals","M4CF4bHHNotIncluded4",null,null,"Number","M4CF4bHHNotIncluded4"]
["Mod 4 Sec C Sub F Item 5a - Program Name","M4CF5aHHNotIncluded5",null,null,"Text","M4CF5aHHNotIncluded5"]
["Mod 4 Sec C Sub F Item 5b - Number of Individuals","M4CF5bHHNotIncluded5",null,null,"Number","M4CF5bHHNotIncluded5"]
["Mod 4 Sec C Sub F Item 6a - Program Name","M4CF6aHHNotIncluded6",null,null,"Text","M4CF6aHHNotIncluded6"]
["Mod 4 Sec C Sub F Item 6b - Number of Individuals","M4CF6bHHNotIncluded6",null,null,"Number","M4CF6bHHNotIncluded6"]
["Mod 4 Sec C Sub F Item 7a - Program Name","M4CF7aHHNotIncluded7",null,null,"Text","M4CF7aHHNotIncluded7"]
["Mod 4 Sec C Sub F Item 7b - Number of Individuals","M4CF7bHHNotIncluded7",null,null,"Number","M4CF7bHHNotIncluded7"]
["Mod 4 Sec C Sub F Item 8a - Program Name","M4CF8aHHNotIncluded8",null,null,"Text","M4CF8aHHNotIncluded8"]
["Mod 4 Sec C Sub F Item 8b - Number of Individuals","M4CF8bHHNotIncluded8",null,null,"Number","M4CF8bHHNotIncluded8"]
["Mod 4 Sec C Sub F Item 9a - Program Name","M4CF9aHHNotIncluded9",null,null,"Text","M4CF9aHHNotIncluded9"]
["Mod 4 Sec C Sub F Item 9b - Number of Individuals","M4CF9bHHNotIncluded9",null,null,"Number","M4CF9bHHNotIncluded9"]
["Mod 4 Sec C Sub F Item 10a - Program Name","M4CF10aHHNotIncluded10",null,null,"Text","M4CF10aHHNotIncluded10"]
["Mod 4 Sec C Sub F Item 10b - Number of Individuals","M4CF10bHHNotIncluded10",null,null,"Number","M4CF10bHHNotIncluded10"]
["Mod 4 Sec C Sub F Item 11a - Program Name","M4CF11aHHNotIncluded11",null,null,"Text","M4CF11aHHNotIncluded11"]
["Mod 4 Sec C Sub F Item 11b - Number of Individuals","M4CF11bHHNotIncluded11",null,null,"Number","M4CF11bHHNotIncluded11"]
["Mod 4 Sec C Sub F Item 12a - Program Name","M4CF12aHHNotIncluded12",null,null,"Text","M4CF12aHHNotIncluded12"]
["Mod 4 Sec C Sub F Item 12b - Number of Individuals","M4CF12bHHNotIncluded12",null,null,"Number","M4CF12bHHNotIncluded12"]
["Mod 4 Sec C Sub F Item 13a - Program Name","M4CF13aHHNotIncluded13",null,null,"Text","M4CF13aHHNotIncluded13"]
["Mod 4 Sec C Sub F Item 13b - Number of Individuals","M4CF13bHHNotIncluded13",null,null,"Number","M4CF13bHHNotIncluded13"]
["Mod 4 Sec C Sub F Item 14a - Program Name","M4CF14aHHNotIncluded14",null,null,"Text","M4CF14aHHNotIncluded14"]
["Mod 4 Sec C Sub F Item 14b - Number of Individuals","M4CF14bHHNotIncluded14",null,null,"Number","M4CF14bHHNotIncluded14"]
["Mod 4 Sec C Sub F Item 15a - Program Name","M4CF15aHHNotIncluded15",null,null,"Text","M4CF15aHHNotIncluded15"]
["Mod 4 Sec C Sub F Item 15b - Number of Individuals","M4CF15bHHNotIncluded15",null,null,"Number","M4CF15bHHNotIncluded15"]
["FNPI_6a_I","M4A6aImprCommCondPart",null,null,"Number","M4A6aImprCommCondPart"]
["FNPI_6a_II","M4A6aImprCommCondTarget",null,null,"Number","M4A6aImprCommCondTarget"]
["FNPI_6a_III","M4A6aImprCommCondResults",null,null,"Number","M4A6aImprCommCondResults"]
["FNPI_6a_iv","M4A6aImprCommCondOutcome",null,null,"Number","M4A6aImprCommCondOutcome"]
["FNPI_6a_v","M4A6aImprCommCondAccuracy",null,null,"Number","M4A6aImprCommCondAccuracy"]
["FNPI 6a.1 Of the above, the number of Community Action program participants who improved their leadership skills.","M4A6a1ImprLeadSkillsPart",null,null,"Number","M4A6a1ImprLeadSkillsPart"]
["FNPI_6a.1_II","M4A6a1ImprLeadSkillsTarget",null,null,"Number","M4A6a1ImprLeadSkillsTarget"]
["FNPI_6a.1_III","M4A6a1ImprLeadSkillsResults",null,null,"Number","M4A6a1ImprLeadSkillsResults"]
["FNPI_6a.1_iv","M4A6a1ImprLeadSkillsOutcome",null,null,"Number","M4A6a1ImprLeadSkillsOutcome"]
["FNPI_6a.1_v","M4A6a1ImprLeadSkillsAccuracy",null,null,"Number","M4A6a1ImprLeadSkillsAccuracy"]
["FNPI 6a.2 Of the above, the number of Community Action program participants who improved their social networks.","M4A6a2ImprSocNetworkPart",null,null,"Number","M4A6a2ImprSocNetworkPart"]
["FNPI_6a.2_II","M4A6a2ImprSocNetworkTarget",null,null,"Number","M4A6a2ImprSocNetworkTarget"]
["FNPI_6a.2_III","M4A6a2ImprSocNetworkResults",null,null,"Number","M4A6a2ImprSocNetworkResults"]
["FNPI_6a.2_iv","M4A6a2ImprSocNetworkOutcome",null,null,"Number","M4A6a2ImprSocNetworkOutcome"]
["FNPI_6a.2_v","M4A6a2ImprSocNetworkAccuracy",null,null,"Number","M4A6a2ImprSocNetworkAccuracy"]
["FNPI 6a.3 Of the above, the number of Community Action program participants who gained other skills, knowledge and abilities to enhance their ability to engage. ","M4A6a3EnhanceEngAbilityPart",null,null,"Number","M4A6a3EnhanceEngAbilityPart"]
["FNPI_6a.3_II","M4A6a3EnhanceEngAbilityTarget",null,null,"Number","M4A6a3EnhanceEngAbilityTarget"]
["FNPI_6a.3_III","M4A6a3EnhanceEngAbilityResults",null,null,"Number","M4A6a3EnhanceEngAbilityResults"]
["FNPI_6a.3_iv","M4A6a3EnhanceEngAbilityOutcome",null,null,"Number","M4A6a3EnhanceEngAbilityOutcome"]
["FNPI_6a.3_v","M4A6a3EnhanceEngAbilityAccuracy",null,null,"Number","M4A6a3EnhanceEngAbilityAccuracy"]
["FNPI 6z.1","M4A6zOtherCivic1Name",null,null,"Text","M4A6zOtherCivic1Name"]
["FNPI_6z.1_I","M4A6zOtherCivic1Part",null,null,"Number","M4A6zOtherCivic1Part"]
["FNPI_6z.1_II","M4A6zOtherCivic1Target",null,null,"Number","M4A6zOtherCivic1Target"]
["FNPI_6z.1_III","M4A6zOtherCivic1Results",null,null,"Number","M4A6zOtherCivic1Results"]
["FNPI 6z.1iv","M4A6zOtherCivic1Outcome",null,null,"Number","M4A6zOtherCivic1Outcome"]
["FNPI 6z.1v","M4A6zOtherCivic1Accuracy",null,null,"Number","M4A6zOtherCivic1Accuracy"]
["FNPI 6z.2","M4A6zOtherCivic2Name",null,null,"Text","M4A6zOtherCivic2Name"]
["FNPI_6z.2_I","M4A6zOtherCivic2Part",null,null,"Number","M4A6zOtherCivic2Part"]
["FNPI_6z.2_II","M4A6zOtherCivic2Target",null,null,"Number","M4A6zOtherCivic2Target"]
["FNPI_6z.2_III","M4A6zOtherCivic2Results",null,null,"Number","M4A6zOtherCivic2Results"]
["FNPI 6z.2iv","M4A6zOtherCivic2Outcome",null,null,"Number","M4A6zOtherCivic2Outcome"]
["FNPI 6z.2v","M4A6zOtherCivic2Accuracy",null,null,"Number","M4A6zOtherCivic2Accuracy"]
["FNPI 6z.3","M4A6zOtherCivic3Name",null,null,"Text","M4A6zOtherCivic3Name"]
["FNPI_6z.3_I","M4A6zOtherCivic3Part",null,null,"Number","M4A6zOtherCivic3Part"]
["FNPI_6z.3_II","M4A6zOtherCivic3Target",null,null,"Number","M4A6zOtherCivic3Target"]
["FNPI_6z.3_III","M4A6zOtherCivic3Results",null,null,"Number","M4A6zOtherCivic3Results"]
["FNPI 6z.3iv","M4A6zOtherCivic3Outcome",null,null,"Number","M4A6zOtherCivic3Outcome"]
["FNPI 6z.3v","M4A6zOtherCivic3Accuracy",null,null,"Number","M4A6zOtherCivic3Accuracy"]
["FNPI 6z.4","M4A6zOtherCivic4Name",null,null,"Text","M4A6zOtherCivic4Name"]
["FNPI_6z.4_I","M4A6zOtherCivic4Part",null,null,"Number","M4A6zOtherCivic4Part"]
["FNPI_6z.4_II","M4A6zOtherCivic4Target",null,null,"Number","M4A6zOtherCivic4Target"]
["FNPI_6z.4_III","M4A6zOtherCivic4Results",null,null,"Number","M4A6zOtherCivic4Results"]
["FNPI 6z.4iv","M4A6zOtherCivic4Outcome",null,null,"Number","M4A6zOtherCivic4Outcome"]
["FNPI 6z.4v","M4A6zOtherCivic4Accuracy",null,null,"Number","M4A6zOtherCivic4Accuracy"]
["FNPI 6z.5","M4A6zOtherCivic5Name",null,null,"Text","M4A6zOtherCivic5Name"]
["FNPI_6z.5_I","M4A6zOtherCivic5Part",null,null,"Number","M4A6zOtherCivic5Part"]
["FNPI_6z.5_II","M4A6zOtherCivic5Target",null,null,"Number","M4A6zOtherCivic5Target"]
["FNPI_6z.5_III","M4A6zOtherCivic5Results",null,null,"Number","M4A6zOtherCivic5Results"]
["FNPI 6z.5iv","M4A6zOtherCivic5Outcome",null,null,"Number","M4A6zOtherCivic5Outcome"]
["FNPI 6z.5v","M4A6zOtherCivic5Accuracy",null,null,"Number","M4A6zOtherCivic5Accuracy"]
["FNPI_Civic_Comments","M4A6Comments",null,null,"Memo","M4A6Comments"]
["FNPI_2a_I","M4A2aChildLitSkillsPart",null,null,"Number","M4A2aChildLitSkillsPart"]
["FNPI_2a_II","M4A2aChildLitSkillsTarget",null,null,"Number","M4A2aChildLitSkillsTarget"]
["FNPI_2a_III","M4A2aChildLitSkillsResults",null,null,"Number","M4A2aChildLitSkillsResults"]
["FNPI_2a_iv","M4A2aChildLitSkillsOutcome",null,null,"Number","M4A2aChildLitSkillsOutcome"]
["FNPI_2a_v","M4A2aChildLitSkillsAccuracy",null,null,"Number","M4A2aChildLitSkillsAccuracy"]
["FNPI_2b_I","M4A2bChildSchoolReadyPart",null,null,"Number","M4A2bChildSchoolReadyPart"]
["FNPI_2b_II","M4A2bChildSchoolReadyTarget",null,null,"Number","M4A2bChildSchoolReadyTarget"]
["FNPI_2b_III","M4A2bChildSchoolReadyResults",null,null,"Number","M4A2bChildSchoolReadyResults"]
["FNPI_2b_iv","M4A2bChildSchoolReadyOutcome",null,null,"Number","M4A2bChildSchoolReadyOutcome"]
["FNPI_2b_v","M4A2bChildSchoolReadyAccuracy",null,null,"Number","M4A2bChildSchoolReadyAccuracy"]
["FNPI_2c_i","M4A2cPosLearnPart",null,null,"Number","M4A2cPosLearnPart"]
["FNPI_2c_iii","M4A2cPosLearnTarget",null,null,"Number","M4A2cPosLearnTarget"]
["FNPI_2c_iii","M4A2cPosLearnResults",null,null,"Number","M4A2cPosLearnResults"]
["FNPI_2c_iv","M4A2cPosLearnOutcome",null,null,"Number","M4A2cPosLearnOutcome"]
["FNPI_2c_v","M4A2cPosLearnAccuracy",null,null,"Number","M4A2cPosLearnAccuracy"]
["FNPI 2c.1    Early Childhood Education (ages 0-5)","M4A2c1PosLearnAge0to5Part",null,null,"Number","M4A2c1PosLearnAge0to5Part"]
["FNPI_2c.1_II","M4A2c1PosLearnAge0to5Target",null,null,"Number","M4A2c1PosLearnAge0to5Target"]
["FNPI_2c.1_III","M4A2c1PosLearnAge0to5Results",null,null,"Number","M4A2c1PosLearnAge0to5Results"]
["FNPI_2c.1_iv","M4A2c1PosLearnAge0to5Outcome",null,null,"Number","M4A2c1PosLearnAge0to5Outcome"]
["FNPI_2c.1_v","M4A2c1PosLearnAge0to5Accuracy",null,null,"Number","M4A2c1PosLearnAge0to5Accuracy"]
["FNPI 2c.2    1st grade-8th grade","M4A2c2PosLearnGrade1to8Part",null,null,"Number","M4A2c2PosLearnGrade1to8Part"]
["FNPI_2c.2_II","M4A2c2PosLearnGrade1to8Target",null,null,"Number","M4A2c2PosLearnGrade1to8Target"]
["FNPI_2c.2_III","M4A2c2PosLearnGrade1to8Results",null,null,"Number","M4A2c2PosLearnGrade1to8Results"]
["FNPI_2c.2_iv","M4A2c2PosLearnGrade1to8Outcome",null,null,"Number","M4A2c2PosLearnGrade1to8Outcome"]
["FNPI_2c.2_v","M4A2c2PosLearnGrade1to8Accuracy",null,null,"Number","M4A2c2PosLearnGrade1to8Accuracy"]
["FNPI 2c.3    9th grade-12th grade","M4A2c3PosLearnGrade9to12Part",null,null,"Number","M4A2c3PosLearnGrade9to12Part"]
["FNPI_2c.3_II","M4A2c3PosLearnGrade9to12Target",null,null,"Number","M4A2c3PosLearnGrade9to12Target"]
["FNPI_2c.3_III","M4A2c3PosLearnGrade9to12Results",null,null,"Number","M4A2c3PosLearnGrade9to12Results"]
["FNPI_2c.3_iv","M4A2c3PosLearnGrade9to12Outcome",null,null,"Number","M4A2c3PosLearnGrade9to12Outcome"]
["FNPI_2c.3_v","M4A2c3PosLearnGrade9to12Accuracy",null,null,"Number","M4A2c3PosLearnGrade9to12Accuracy"]
["FNPI_2d_i","M4A2dBasicLevelPart",null,null,"Number","M4A2dBasicLevelPart"]
["FNPI_2d_iii","M4A2dBasicLevelTarget",null,null,"Number","M4A2dBasicLevelTarget"]
["FNPI_2d_iii","M4A2dBasicLevelResults",null,null,"Number","M4A2dBasicLevelResults"]
["FNPI_2d_iv","M4A2dBasicLevelOutcome",null,null,"Number","M4A2dBasicLevelOutcome"]
["FNPI_2d_v","M4A2dBasicLevelAccuracy",null,null,"Number","M4A2dBasicLevelAccuracy"]
["FNPI 2d.1    Early Childhood Education (ages 0-5)","M4A2d1BasicLevel0to5Part",null,null,"Number","M4A2d1BasicLevel0to5Part"]
["FNPI_2d.1_II","M4A2d1BasicLevel0to5Target",null,null,"Number","M4A2d1BasicLevel0to5Target"]
["FNPI_2d.1_III","M4A2d1BasicLevel0to5Results",null,null,"Number","M4A2d1BasicLevel0to5Results"]
["FNPI_2d.1_iv","M4A2d1BasicLevel0to5Outcome",null,null,"Number","M4A2d1BasicLevel0to5Outcome"]
["FNPI_2d.1_v","M4A2d1BasicLevel0to5Accuracy",null,null,"Number","M4A2d1BasicLevel0to5Accuracy"]
["FNPI 2d.2    1st grade-8th grade","M4A2d2BasicLevelGrade1to8Part",null,null,"Number","M4A2d2BasicLevelGrade1to8Part"]
["FNPI_2d.2_II","M4A2d2BasicLevelGrade1to8Target",null,null,"Number","M4A2d2BasicLevelGrade1to8Target"]
["FNPI_2d.2_III","M4A2d2BasicLevelGrade1to8Results",null,null,"Number","M4A2d2BasicLevelGrade1to8Results"]
["FNPI_2d.2_iv","M4A2d2BasicLevelGrade1to8Outcome",null,null,"Number","M4A2d2BasicLevelGrade1to8Outcome"]
["FNPI_2d.2_v","M4A2d2BasicLevelGrade1to8Accuracy",null,null,"Number","M4A2d2BasicLevelGrade1to8Accuracy"]
["FNPI 2d.3   9th grade-12th grade","M4A2d3BasicLevelGrade9to12Part",null,null,"Number","M4A2d3BasicLevelGrade9to12Part"]
["FNPI_2d.3_II","M4A2d3BasicLevelGrade9to12Target",null,null,"Number","M4A2d3BasicLevelGrade9to12Target"]
["FNPI_2d.3_III","M4A2d3BasicLevelGrade9to12Results",null,null,"Number","M4A2d3BasicLevelGrade9to12Results"]
["FNPI_2d.3_iv","M4A2d3BasicLevelGrade9to12Outcome",null,null,"Number","M4A2d3BasicLevelGrade9to12Outcome"]
["FNPI_2d.3_v","M4A2d3BasicLevelGrade9to12Accuracy",null,null,"Number","M4A2d3BasicLevelGrade9to12Accuracy"]
["FNPI_2e_I","M4A2eParentHomeEnvPart",null,null,"Number","M4A2eParentHomeEnvPart"]
["FNPI_2e_II","M4A2eParentHomeEnvTarget",null,null,"Number","M4A2eParentHomeEnvTarget"]
["FNPI_2e_III","M4A2eParentHomeEnvResults",null,null,"Number","M4A2eParentHomeEnvResults"]
["FNPI_2e_iv","M4A2eParentHomeEnvOutcome",null,null,"Number","M4A2eParentHomeEnvOutcome"]
["FNPI_2e_v","M4A2eParentHomeEnvAccuracy",null,null,"Number","M4A2eParentHomeEnvAccuracy"]
["FNPI_2f_I","M4A2fAdultBasicEdPart",null,null,"Number","M4A2fAdultBasicEdPart"]
["FNPI_2f_II","M4A2fAdultBasicEdTarget",null,null,"Number","M4A2fAdultBasicEdTarget"]
["FNPI_2f_III","M4A2fAdultBasicEdResults",null,null,"Number","M4A2fAdultBasicEdResults"]
["FNPI_2f_iv","M4A2fAdultBasicEdOutcome",null,null,"Number","M4A2fAdultBasicEdOutcome"]
["FNPI_2f_v","M4A2fAdultBasicEdAccuracy",null,null,"Number","M4A2fAdultBasicEdAccuracy"]
["FNPI_2g_I","M4A2gHighSchoolPart",null,null,"Number","M4A2gHighSchoolPart"]
["FNPI_2g_II","M4A2gHighSchoolTarget",null,null,"Number","M4A2gHighSchoolTarget"]
["FNPI_2g_III","M4A2gHighSchoolResults",null,null,"Number","M4A2gHighSchoolResults"]
["FNPI_2g_iv","M4A2gHighSchoolOutcome",null,null,"Number","M4A2gHighSchoolOutcome"]
["FNPI_2g_v","M4A2gHighSchoolAccuracy",null,null,"Number","M4A2gHighSchoolAccuracy"]
["FNPI_2h_I","M4A2hEdVocPart",null,null,"Number","M4A2hEdVocPart"]
["FNPI_2h_II","M4A2hEdVocTarget",null,null,"Number","M4A2hEdVocTarget"]
["FNPI_2h_III","M4A2hEdVocResults",null,null,"Number","M4A2hEdVocResults"]
["FNPI_2h_iv","M4A2hEdVocOutcome",null,null,"Number","M4A2hEdVocOutcome"]
["FNPI_2h_v","M4A2hEdVocAccuracy",null,null,"Number","M4A2hEdVocAccuracy"]
["FNPI_2i_I","M4A2iAssocDegPart",null,null,"Number","M4A2iAssocDegPart"]
["FNPI_2i_II","M4A2iAssocDegTarget",null,null,"Number","M4A2iAssocDegTarget"]
["FNPI_2i_III","M4A2iAssocDegResults",null,null,"Number","M4A2iAssocDegResults"]
["FNPI_2i_iv","M4A2iAssocDegOutcome",null,null,"Number","M4A2iAssocDegOutcome"]
["FNPI_2i_v","M4A2iAssocDegAccuracy",null,null,"Number","M4A2iAssocDegAccuracy"]
["FNPI_2j_I","M4A2jBachDegPart",null,null,"Number","M4A2jBachDegPart"]
["FNPI_2j_II","M4A2jBachDegTarget",null,null,"Number","M4A2jBachDegTarget"]
["FNPI_2j_III","M4A2jBachDegResults",null,null,"Number","M4A2jBachDegResults"]
["FNPI_2j_iv","M4A2jBachDegOutcome",null,null,"Number","M4A2jBachDegOutcome"]
["FNPI_2j_v","M4A2jBachDegAccuracy",null,null,"Number","M4A2jBachDegAccuracy"]
["FNPI 2z.1","M4A2zOtherEdu1Name",null,null,"Text","M4A2zOtherEdu1Name"]
["FNPI_2z.1_I","M4A2zOtherEdu1Part",null,null,"Number","M4A2zOtherEdu1Part"]
["FNPI_2z.1_II","M4A2zOtherEdu1Target",null,null,"Number","M4A2zOtherEdu1Target"]
["FNPI_2z.1_III","M4A2zOtherEdu1Results",null,null,"Number","M4A2zOtherEdu1Results"]
["FNPI 2z.1iv","M4A2zOtherEdu1Outcome",null,null,"Number","M4A2zOtherEdu1Outcome"]
["FNPI 2z.1v","M4A2zOtherEdu1Accuracy",null,null,"Number","M4A2zOtherEdu1Accuracy"]
["FNPI 2z.2","M4A2zOtherEdu2Name",null,null,"Text","M4A2zOtherEdu2Name"]
["FNPI_2z.2_I","M4A2zOtherEdu2Part",null,null,"Number","M4A2zOtherEdu2Part"]
["FNPI_2z.2_II","M4A2zOtherEdu2Target",null,null,"Number","M4A2zOtherEdu2Target"]
["FNPI_2z.2_III","M4A2zOtherEdu2Results",null,null,"Number","M4A2zOtherEdu2Results"]
["FNPI 2z.2iv","M4A2zOtherEdu2Outcome",null,null,"Number","M4A2zOtherEdu2Outcome"]
["FNPI 2z.2v","M4A2zOtherEdu2Accuracy",null,null,"Number","M4A2zOtherEdu2Accuracy"]
["FNPI 2z.3","M4A2zOtherEdu3Name",null,null,"Text","M4A2zOtherEdu3Name"]
["FNPI_2z.3_I","M4A2zOtherEdu3Part",null,null,"Number","M4A2zOtherEdu3Part"]
["FNPI_2z.3_II","M4A2zOtherEdu3Target",null,null,"Number","M4A2zOtherEdu3Target"]
["FNPI_2z.3_III","M4A2zOtherEdu3Results",null,null,"Number","M4A2zOtherEdu3Results"]
["FNPI 2z.3iv","M4A2zOtherEdu3Outcome",null,null,"Number","M4A2zOtherEdu3Outcome"]
["FNPI 2z.3v","M4A2zOtherEdu3Accuracy",null,null,"Number","M4A2zOtherEdu3Accuracy"]
["FNPI 2z.4","M4A2zOtherEdu4Name",null,null,"Text","M4A2zOtherEdu4Name"]
["FNPI_2z.4_I","M4A2zOtherEdu4Part",null,null,"Number","M4A2zOtherEdu4Part"]
["FNPI_2z.4_II","M4A2zOtherEdu4Target",null,null,"Number","M4A2zOtherEdu4Target"]
["FNPI_2z.4_III","M4A2zOtherEdu4Results",null,null,"Number","M4A2zOtherEdu4Results"]
["FNPI 2z.4iv","M4A2zOtherEdu4Outcome",null,null,"Number","M4A2zOtherEdu4Outcome"]
["FNPI 2z.4v","M4A2zOtherEdu4Accuracy",null,null,"Number","M4A2zOtherEdu4Accuracy"]
["FNPI 2z.5","M4A2zOtherEdu5Name",null,null,"Text","M4A2zOtherEdu5Name"]
["FNPI_2z.5_I","M4A2zOtherEdu5Part",null,null,"Number","M4A2zOtherEdu5Part"]
["FNPI_2z.5_II","M4A2zOtherEdu5Target",null,null,"Number","M4A2zOtherEdu5Target"]
["FNPI_2z.5_III","M4A2zOtherEdu5Results",null,null,"Number","M4A2zOtherEdu5Results"]
["FNPI 2z.5iv","M4A2zOtherEdu5Outcome",null,null,"Number","M4A2zOtherEdu5Outcome"]
["FNPI 2z.5v","M4A2zOtherEdu5Accuracy",null,null,"Number","M4A2zOtherEdu5Accuracy"]
["FNPI_Ed_Comments","M4A2Comments",null,null,"Memo","M4A2Comments"]
["FNPI_1a_I","M4A1aEmployYouthPart",null,null,"Number","M4A1aEmployYouthPart"]
["FNPI_1a_II","M4A1aEmployYouthTarget",null,null,"Number","M4A1aEmployYouthTarget"]
["FNPI_1a_III","M4A1aEmployYouthResults",null,null,"Number","M4A1aEmployYouthResults"]
["FNPI_1a_iv","M4A1aEmployYouthOutcome",null,null,"Number","M4A1aEmployYouthOutcome"]
["FNPI_1a_v","M4A1aEmployYouthAccuracy",null,null,"Number","M4A1aEmployYouthAccuracy"]
["FNPI_1b_I","M4A1bEmployAdultWagePart",null,null,"Number","M4A1bEmployAdultWagePart"]
["FNPI_1b_II","M4A1bEmployAdultWageTarget",null,null,"Number","M4A1bEmployAdultWageTarget"]
["FNPI_1b_III","M4A1bEmployAdultWageResults",null,null,"Number","M4A1bEmployAdultWageResults"]
["FNPI_1b_iv","M4A1bEmployAdultWageOutcome",null,null,"Number","M4A1bEmployAdultWageOutcome"]
["FNPI_1b_v","M4A1bEmployAdultWageAccuracy",null,null,"Number","M4A1bEmployAdultWageAccuracy"]
["FNPI_1c_I","M4A1cEmployAdultWage90daysPart",null,null,"Number","M4A1cEmployAdultWage90daysPart"]
["FNPI_1c_II","M4A1cEmployAdultWage90daysTarget",null,null,"Number","M4A1cEmployAdultWage90daysTarget"]
["FNPI_1c_III","M4A1cEmployAdultWage90daysResults",null,null,"Number","M4A1cEmployAdultWage90daysResults"]
["FNPI_1c_iv","M4A1cEmployAdultWage90daysOutcome",null,null,"Number","M4A1cEmployAdultWage90daysOutcome"]
["FNPI_1c_v","M4A1cEmployAdultWage90daysAccuracy",null,null,"Number","M4A1cEmployAdultWage90daysAccuracy"]
["FNPI_1d_I","M4A1dEmployAdultWage180daysPart",null,null,"Number","M4A1dEmployAdultWage180daysPart"]
["FNPI_1d_II","M4A1dEmployAdultWage180daysTarget",null,null,"Number","M4A1dEmployAdultWage180daysTarget"]
["FNPI_1d_III","M4A1dEmployAdultWage180daysResults",null,null,"Number","M4A1dEmployAdultWage180daysResults"]
["FNPI_1d_iv","M4A1dEmployAdultWage180daysOutcome",null,null,"Number","M4A1dEmployAdultWage180daysOutcome"]
["FNPI_1d_v","M4A1dEmployAdultWage180daysAccuracy",null,null,"Number","M4A1dEmployAdultWage180daysAccuracy"]
["FNPI_1e_I","M4A1eEmployAdultAbovePart",null,null,"Number","M4A1eEmployAdultAbovePart"]
["FNPI_1e_II","M4A1eEmployAdultAboveTarget",null,null,"Number","M4A1eEmployAdultAboveTarget"]
["FNPI_1e_III","M4A1eEmployAdultAboveResults",null,null,"Number","M4A1eEmployAdultAboveResults"]
["FNPI_1e_iv","M4A1eEmployAdultAboveOutcome",null,null,"Number","M4A1eEmployAdultAboveOutcome"]
["FNPI_1e_v","M4A1eEmployAdultAboveAccuracy",null,null,"Number","M4A1eEmployAdultAboveAccuracy"]
["FNPI_1f_I","M4A1fEmployAdultAbove90daysPart",null,null,"Number","M4A1fEmployAdultAbove90daysPart"]
["FNPI_1f_II","M4A1fEmployAdultAbove90daysTarget",null,null,"Number","M4A1fEmployAdultAbove90daysTarget"]
["FNPI_1f_III","M4A1fEmployAdultAbove90daysResults",null,null,"Number","M4A1fEmployAdultAbove90daysResults"]
["FNPI_1f_iv","M4A1fEmployAdultAbove90daysOutcome",null,null,"Number","M4A1fEmployAdultAbove90daysOutcome"]
["FNPI_1f_v","M4A1fEmployAdultAbove90daysAccuracy",null,null,"Number","M4A1fEmployAdultAbove90daysAccuracy"]
["FNPI_1g_I","M4A1gEmployAdultAbove180daysPart",null,null,"Number","M4A1gEmployAdultAbove180daysPart"]
["FNPI_1g_II","M4A1gEmployAdultAbove180daysTarget",null,null,"Number","M4A1gEmployAdultAbove180daysTarget"]
["FNPI_1g_III","M4A1gEmployAdultAbove180daysResults",null,null,"Number","M4A1gEmployAdultAbove180daysResults"]
["FNPI_1g_iv","M4A1gEmployAdultAbove180daysOutcome",null,null,"Number","M4A1gEmployAdultAbove180daysOutcome"]
["FNPI_1g_v","M4A1gEmployAdultAbove180daysAccuracy",null,null,"Number","M4A1gEmployAdultAbove180daysAccuracy"]
["FNPI_1h_I","M4A1h3CareerAdvBensPart",null,null,"Number","M4A1hCareerAdvPart"]
["FNPI_1h_II","M4A1h3CareerAdvBensTarget",null,null,"Number","M4A1hCareerAdvTarget"]
["FNPI_1h_III","M4A1h3CareerAdvBensResults",null,null,"Number","M4A1hCareerAdvResults"]
["FNPI_1h_iv","M4A1h3CareerAdvBensOutcome",null,null,"Number","M4A1hCareerAdvOutcome"]
["FNPI_1h_v","M4A1h3CareerAdvBensAccuracy",null,null,"Number","M4A1hCareerAdvAccuracy"]
["FNPI 1h.1 Of the above, the number of employed participants who Increased income from employment through wage or salary amount increase.","M4A1hCareerAdvPart",null,null,"Number","M4A1h1CareerAdvIncPart"]
["FNPI_1h.1_II","M4A1hCareerAdvTarget",null,null,"Number","M4A1h1CareerAdvIncTarget"]
["FNPI_1h.1_III","M4A1hCareerAdvResults",null,null,"Number","M4A1h1CareerAdvIncResults"]
["FNPI_1h.1_iv","M4A1hCareerAdvOutcome",null,null,"Number","M4A1h1CareerAdvIncOutcome"]
["FNPI_1h.1_v","M4A1hCareerAdvAccuracy",null,null,"Number","M4A1h1CareerAdvIncAccuracy"]
["FNPI 1h.2 Of the above, the number of employed participants who increased income from employment through hours worked increase.","M4A1h1CareerAdvIncPart",null,null,"Number","M4A1h2CareerAdvHoursPart"]
["FNPI_1h.2_II","M4A1h1CareerAdvIncTarget",null,null,"Number","M4A1h2CareerAdvHoursTarget"]
["FNPI_1h.2_III","M4A1h1CareerAdvIncResults",null,null,"Number","M4A1h2CareerAdvHoursResults"]
["FNPI_1h.2_iv","M4A1h1CareerAdvIncOutcome",null,null,"Number","M4A1h2CareerAdvHoursOutcome"]
["FNPI_1h.2_v","M4A1h1CareerAdvIncAccuracy",null,null,"Number","M4A1h2CareerAdvHoursAccuracy"]
["FNPI 1h.3 Of the above, the number of employed participants who increased benefits related to employment.","M4A1h2CareerAdvHoursPart",null,null,"Number","M4A1h3CareerAdvBensPart"]
["FNPI_1h.3_II","M4A1h2CareerAdvHoursTarget",null,null,"Number","M4A1h3CareerAdvBensTarget"]
["FNPI_1h.3_III","M4A1h2CareerAdvHoursResults",null,null,"Number","M4A1h3CareerAdvBensResults"]
["FNPI_1h.3_iv","M4A1h2CareerAdvHoursOutcome",null,null,"Number","M4A1h3CareerAdvBensOutcome"]
["FNPI_1h.3_v","M4A1h2CareerAdvHoursAccuracy",null,null,"Number","M4A1h3CareerAdvBensAccuracy"]
["FNPI 1z.1","M4A1z1OtherEmploy1Name",null,null,"Text","M4A1z1OtherEmploy1Name"]
["FNPI_1z.1_I","M4A1zOtherEmploy1Part",null,null,"Number","M4A1zOtherEmploy1Part"]
["FNPI_1z.1_II","M4A1zOtherEmploy1Target",null,null,"Number","M4A1zOtherEmploy1Target"]
["FNPI_1z.1_III","M4A1zOtherEmploy1Results",null,null,"Number","M4A1zOtherEmploy1Results"]
["FNPI 1z.1iv","M4A1zOtherEmploy1Outcome",null,null,"Number","M4A1zOtherEmploy1Outcome"]
["FNPI 1z.1v","M4A1zOtherEmploy1Accuracy",null,null,"Number","M4A1zOtherEmploy1Accuracy"]
["FNPI 1z.2","M4A1zOtherEmploy2Name",null,null,"Text","M4A1zOtherEmploy2Name"]
["FNPI_1z.2_I","M4A1zOtherEmploy2Part",null,null,"Number","M4A1zOtherEmploy2Part"]
["FNPI_1z.2_II","M4A1zOtherEmploy2Target",null,null,"Number","M4A1zOtherEmploy2Target"]
["FNPI_1z.2_III","M4A1zOtherEmploy2Results",null,null,"Number","M4A1zOtherEmploy2Results"]
["FNPI 1z.2iv","M4A1zOtherEmploy2Outcome",null,null,"Number","M4A1zOtherEmploy2Outcome"]
["FNPI 1z.2v","M4A1zOtherEmploy2Accuracy",null,null,"Number","M4A1zOtherEmploy2Accuracy"]
["FNPI 1z.3","M4A1zOtherEmploy3Name",null,null,"Text","M4A1zOtherEmploy3Name"]
["FNPI_1z.3_I","M4A1zOtherEmploy3Part",null,null,"Number","M4A1zOtherEmploy3Part"]
["FNPI_1z.3_II","M4A1zOtherEmploy3Target",null,null,"Number","M4A1zOtherEmploy3Target"]
["FNPI_1z.3_III","M4A1zOtherEmploy3Results",null,null,"Number","M4A1zOtherEmploy3Results"]
["FNPI 1z.3iv","M4A1zOtherEmploy3Outcome",null,null,"Number","M4A1zOtherEmploy3Outcome"]
["FNPI 1z.3v","M4A1zOtherEmploy3Accuracy",null,null,"Number","M4A1zOtherEmploy3Accuracy"]
["FNPI 1z.4","M4A1zOtherEmploy4Name",null,null,"Text","M4A1zOtherEmploy4Name"]
["FNPI_1z.4_I","M4A1zOtherEmploy4Part",null,null,"Number","M4A1zOtherEmploy4Part"]
["FNPI_1z.4_II","M4A1zOtherEmploy4Target",null,null,"Number","M4A1zOtherEmploy4Target"]
["FNPI_1z.4_III","M4A1zOtherEmploy4Results",null,null,"Number","M4A1zOtherEmploy4Results"]
["FNPI 1z.4iv","M4A1zOtherEmploy4Outcome",null,null,"Number","M4A1zOtherEmploy4Outcome"]
["FNPI 1z.4v","M4A1zOtherEmploy4Accuracy",null,null,"Number","M4A1zOtherEmploy4Accuracy"]
["FNPI 1z.5","M4A1zOtherEmploy5Name",null,null,"Text","M4A1zOtherEmploy5Name"]
["FNPI_1z.5_I","M4A1zOtherEmploy5Part",null,null,"Number","M4A1zOtherEmploy5Part"]
["FNPI_1z.5_II","M4A1zOtherEmploy5Target",null,null,"Number","M4A1zOtherEmploy5Target"]
["FNPI_1z.5_III","M4A1zOtherEmploy5Results",null,null,"Number","M4A1zOtherEmploy5Results"]
["FNPI 1z.5iv","M4A1zOtherEmploy5Outcome",null,null,"Number","M4A1zOtherEmploy5Outcome"]
["FNPI 1z.5v","M4A1zOtherEmploy5Accuracy",null,null,"Number","M4A1zOtherEmploy5Accuracy"]
["FNPI_Employ_Comments","M4A1Comments",null,null,"Memo","M4A1Comments"]
["FNPI_5a_I","M4A5aNutrSkillIncrPart",null,null,"Number","M4A5aNutrSkillIncrPart"]
["FNPI_5a_II","M4A5aNutrSkillIncrTarget",null,null,"Number","M4A5aNutrSkillIncrTarget"]
["FNPI_5a_III","M4A5aNutrSkillIncrResults",null,null,"Number","M4A5aNutrSkillIncrResults"]
["FNPI_5a_iv","M4A5aNutrSkillIncrOutcome",null,null,"Number","M4A5aNutrSkillIncrOutcome"]
["FNPI_5a_v","M4A5aNutrSkillIncrAccuracy",null,null,"Number","M4A5aNutrSkillIncrAccuracy"]
["FNPI_5b_I","M4A5bPhysHealthImprPart",null,null,"Number","M4A5bPhysHealthImprPart"]
["FNPI_5b_II","M4A5bPhysHealthImprTarget",null,null,"Number","M4A5bPhysHealthImprTarget"]
["FNPI_5b_III","M4A5bPhysHealthImprResults",null,null,"Number","M4A5bPhysHealthImprResults"]
["FNPI_5b_iv","M4A5bPhysHealthImprOutcome",null,null,"Number","M4A5bPhysHealthImprOutcome"]
["FNPI_5b_v","M4A5bPhysHealthImprAccuracy",null,null,"Number","M4A5bPhysHealthImprAccuracy"]
["FNPI_5c_I","M4A5cMentHealthImprPart",null,null,"Number","M4A5cMentHealthImprPart"]
["FNPI_5c_II","M4A5cMentHealthImprTarget",null,null,"Number","M4A5cMentHealthImprTarget"]
["FNPI_5c_III","M4A5cMentHealthImprResults",null,null,"Number","M4A5cMentHealthImprResults"]
["FNPI_5c_iv","M4A5cMentHealthImprOutcome",null,null,"Number","M4A5cMentHealthImprOutcome"]
["FNPI_5c_v","M4A5cMentHealthImprAccuracy",null,null,"Number","M4A5cMentHealthImprAccuracy"]
["FNPI_5d_I","M4A5dAdultRoleSkillsImprPart",null,null,"Number","M4A5dAdultRoleSkillsImprPart"]
["FNPI_5d_II","M4A5dAdultRoleSkillsImprTarget",null,null,"Number","M4A5dAdultRoleSkillsImprTarget"]
["FNPI_5d_III","M4A5dAdultRoleSkillsImprResults",null,null,"Number","M4A5dAdultRoleSkillsImprResults"]
["FNPI_5d_iv","M4A5dAdultRoleSkillsImprOutcome",null,null,"Number","M4A5dAdultRoleSkillsImprOutcome"]
["FNPI_5d_v","M4A5dAdultRoleSkillsImprAccuracy",null,null,"Number","M4A5dAdultRoleSkillsImprAccuracy"]
["FNPI_5e_I","M4A5eSensRespIncrPart",null,null,"Number","M4A5eSensRespIncrPart"]
["FNPI_5e_II","M4A5eSensRespIncrTarget",null,null,"Number","M4A5eSensRespIncrTarget"]
["FNPI_5e_III","M4A5eSensRespIncrResults",null,null,"Number","M4A5eSensRespIncrResults"]
["FNPI_5e_iv","M4A5eSensRespIncrOutcome",null,null,"Number","M4A5eSensRespIncrOutcome"]
["FNPI_5e_v","M4A5eSensRespIncrAccuracy",null,null,"Number","M4A5eSensRespIncrAccuracy"]
["FNPI_5f_I","M4A5fSensIndLivingPart",null,null,"Number","M4A5fSensIndLivingPart"]
["FNPI_5f_II","M4A5fSensIndLivingTarget",null,null,"Number","M4A5fSensIndLivingTarget"]
["FNPI_5f_III","M4A5fSensIndLivingResults",null,null,"Number","M4A5fSensIndLivingResults"]
["FNPI_5f_iv","M4A5fSensIndLivingOutcome",null,null,"Number","M4A5fSensIndLivingOutcome"]
["FNPI_5f_v","M4A5fSensIndLivingAccuracy",null,null,"Number","M4A5fSensIndLivingAccuracy"]
["FNPI_5g_I","M4A5gDisIndLivingPart",null,null,"Number","M4A5gDisIndLivingPart"]
["FNPI_5g_II","M4A5gDisIndLivingTarget",null,null,"Number","M4A5gDisIndLivingTarget"]
["FNPI_5g_III","M4A5gDisIndLivingResults",null,null,"Number","M4A5gDisIndLivingResults"]
["FNPI_5g_iv","M4A5gDisIndLivingOutcome",null,null,"Number","M4A5gDisIndLivingOutcome"]
["FNPI_5g_v","M4A5gDisIndLivingAccuracy",null,null,"Number","M4A5gDisIndLivingAccuracy"]
["FNPI_5h_I","M4A5hIllIndLivingPart",null,null,"Number","M4A5hIllIndLivingPart"]
["FNPI_5h_II","M4A5hIllIndLivingTarget",null,null,"Number","M4A5hIllIndLivingTarget"]
["FNPI_5h_III","M4A5hIllIndLivingResults",null,null,"Number","M4A5hIllIndLivingResults"]
["FNPI_5h_iv","M4A5hIllIndLivingOutcome",null,null,"Number","M4A5hIllIndLivingOutcome"]
["FNPI_5h_v","M4A5hIllIndLivingAccuracy",null,null,"Number","M4A5hIllIndLivingAccuracy"]
["FNPI_5i_I","M4A5iNoRecidEventPart",null,null,"Number","M4A5iNoRecidEventPart"]
["FNPI_5i_II","M4A5iNoRecidEventTarget",null,null,"Number","M4A5iNoRecidEventTarget"]
["FNPI_5i_III","M4A5iNoRecidEventResults",null,null,"Number","M4A5iNoRecidEventResults"]
["FNPI_5i_iv","M4A5iNoRecidEventOutcome",null,null,"Number","M4A5iNoRecidEventOutcome"]
["FNPI_5i_v","M4A5iNoRecidEventAccuracy",null,null,"Number","M4A5iNoRecidEventAccuracy"]
["FNPI 5i.1 Youth (ages 14-17)","M4A5i1NoRecidEventYouthPart",null,null,"Number","M4A5i1NoRecidEventYouthPart"]
["FNPI_5i.1_II","M4A5i1NoRecidEventYouthTarget",null,null,"Number","M4A5i1NoRecidEventYouthTarget"]
["FNPI_5i.1_III","M4A5i1NoRecidEventYouthResults",null,null,"Number","M4A5i1NoRecidEventYouthResults"]
["FNPI_5i.1_iv","M4A5i1NoRecidEventYouthOutcome",null,null,"Number","M4A5i1NoRecidEventYouthOutcome"]
["FNPI_5i.1_v","M4A5i1NoRecidEventYouthAccuracy",null,null,"Number","M4A5i1NoRecidEventYouthAccuracy"]
["FNPI 5i.2 Adults (ages 18+)","M4A5i2NoRecidEventAdultPart",null,null,"Number","M4A5i2NoRecidEventAdultPart"]
["FNPI_5i.2_II","M4A5i2NoRecidEventAdultTarget",null,null,"Number","M4A5i2NoRecidEventAdultTarget"]
["FNPI_5i.2_III","M4A5i2NoRecidEventAdultResults",null,null,"Number","M4A5i2NoRecidEventAdultResults"]
["FNPI_5i.2_iv","M4A5i2NoRecidEventAdultOutcome",null,null,"Number","M4A5i2NoRecidEventAdultOutcome"]
["FNPI_5i.2_v","M4A5i2NoRecidEventAdultAccuracy",null,null,"Number","M4A5i2NoRecidEventAdultAccuracy"]
["FNPI 5z.1","M4A5zOtherHealth1Name",null,null,"Text","M4A5zOtherHealth1Name"]
["FNPI_5z.1_I","M4A5zOtherHealth1Part",null,null,"Number","M4A5zOtherHealth1Part"]
["FNPI_5z.1_II","M4A5zOtherHealth1Target",null,null,"Number","M4A5zOtherHealth1Target"]
["FNPI_5z.1_III","M4A5zOtherHealth1Results",null,null,"Number","M4A5zOtherHealth1Results"]
["FNPI 5z.1iv","M4A5zOtherHealth1Outcome",null,null,"Number","M4A5zOtherHealth1Outcome"]
["FNPI 5z.1v","M4A5zOtherHealth1Accuracy",null,null,"Number","M4A5zOtherHealth1Accuracy"]
["FNPI 5z.2","M4A5zOtherHealth2Name",null,null,"Text","M4A5zOtherHealth2Name"]
["FNPI_5z.2_I","M4A5zOtherHealth2Part",null,null,"Number","M4A5zOtherHealth2Part"]
["FNPI_5z.2_II","M4A5zOtherHealth2Target",null,null,"Number","M4A5zOtherHealth2Target"]
["FNPI_5z.2_III","M4A5zOtherHealth2Results",null,null,"Number","M4A5zOtherHealth2Results"]
["FNPI 5z.2iv","M4A5zOtherHealth2Outcome",null,null,"Number","M4A5zOtherHealth2Outcome"]
["FNPI 5z.2v","M4A5zOtherHealth2Accuracy",null,null,"Number","M4A5zOtherHealth2Accuracy"]
["FNPI 5z.3","M4A5zOtherHealth3Name",null,null,"Text","M4A5zOtherHealth3Name"]
["FNPI_5z.3_I","M4A5zOtherHealth3Part",null,null,"Number","M4A5zOtherHealth3Part"]
["FNPI_5z.3_II","M4A5zOtherHealth3Target",null,null,"Number","M4A5zOtherHealth3Target"]
["FNPI_5z.3_III","M4A5zOtherHealth3Results",null,null,"Number","M4A5zOtherHealth3Results"]
["FNPI 5z.3iv","M4A5zOtherHealth3Outcome",null,null,"Number","M4A5zOtherHealth3Outcome"]
["FNPI 5z.3v","M4A5zOtherHealth3Accuracy",null,null,"Number","M4A5zOtherHealth3Accuracy"]
["FNPI 5z.4","M4A5zOtherHealth4Name",null,null,"Text","M4A5zOtherHealth4Name"]
["FNPI_5z.4_I","M4A5zOtherHealth4Part",null,null,"Number","M4A5zOtherHealth4Part"]
["FNPI_5z.4_II","M4A5zOtherHealth4Target",null,null,"Number","M4A5zOtherHealth4Target"]
["FNPI_5z.4_III","M4A5zOtherHealth4Results",null,null,"Number","M4A5zOtherHealth4Results"]
["FNPI 5z.4iv","M4A5zOtherHealth4Outcome",null,null,"Number","M4A5zOtherHealth4Outcome"]
["FNPI 5z.4v","M4A5zOtherHealth4Accuracy",null,null,"Number","M4A5zOtherHealth4Accuracy"]
["FNPI 5z.5","M4A5zOtherHealth5Name",null,null,"Text","M4A5zOtherHealth5Name"]
["FNPI_5z.5_I","M4A5zOtherHealth5Part",null,null,"Number","M4A5zOtherHealth5Part"]
["FNPI_5z.5_II","M4A5zOtherHealth5Target",null,null,"Number","M4A5zOtherHealth5Target"]
["FNPI_5z.5_III","M4A5zOtherHealth5Results",null,null,"Number","M4A5zOtherHealth5Results"]
["FNPI 5z.5iv","M4A5zOtherHealth5Outcome",null,null,"Number","M4A5zOtherHealth5Outcome"]
["FNPI 5z.5v","M4A5zOtherHealth5Accuracy",null,null,"Number","M4A5zOtherHealth5Accuracy"]
["FNPI_Health_Comments","M4A5Comments",null,null,"Memo","M4A5Comments"]
["FNPI_4a_I","M4A4aTempShelterPart",null,null,"Number","M4A4aTempShelterPart"]
["FNPI_4a_II","M4A4aTempShelterTarget",null,null,"Number","M4A4aTempShelterTarget"]
["FNPI_4a_III","M4A4aTempShelterResults",null,null,"Number","M4A4aTempShelterResults"]
["FNPI_4a_iv","M4A4aTempShelterOutcome",null,null,"Number","M4A4aTempShelterOutcome"]
["FNPI_4a_v","M4A4aTempShelterAccuracy",null,null,"Number","M4A4aTempShelterAccuracy"]
["FNPI_4b_I","M4A4bAffordHousingPart",null,null,"Number","M4A4bAffordHousingPart"]
["FNPI_4b_II","M4A4bAffordHousingTarget",null,null,"Number","M4A4bAffordHousingTarget"]
["FNPI_4b_III","M4A4bAffordHousingResults",null,null,"Number","M4A4bAffordHousingResults"]
["FNPI_4b_iv","M4A4bAffordHousingOutcome",null,null,"Number","M4A4bAffordHousingOutcome"]
["FNPI_4b_v","M4A4bAffordHousingAccuracy",null,null,"Number","M4A4bAffordHousingAccuracy"]
["FNPI_4c_I","M4A4cAffordHousing90Part",null,null,"Number","M4A4cAffordHousing90Part"]
["FNPI_4c_II","M4A4cAffordHousing90Target",null,null,"Number","M4A4cAffordHousing90Target"]
["FNPI_4c_III","M4A4cAffordHousing90Results",null,null,"Number","M4A4cAffordHousing90Results"]
["FNPI_4c_iv","M4A4cAffordHousing90Outcome",null,null,"Number","M4A4cAffordHousing90Outcome"]
["FNPI_4c_v","M4A4cAffordHousing90Accuracy",null,null,"Number","M4A4cAffordHousing90Accuracy"]
["FNPI_4d_I","M4A4dAffordHousing180Part",null,null,"Number","M4A4dAffordHousing180Part"]
["FNPI_4d_II","M4A4dAffordHousing180Target",null,null,"Number","M4A4dAffordHousing180Target"]
["FNPI_4d_III","M4A4dAffordHousing180Results",null,null,"Number","M4A4dAffordHousing180Results"]
["FNPI_4d_iv","M4A4dAffordHousing180Outcome",null,null,"Number","M4A4dAffordHousing180Outcome"]
["FNPI_4d_v","M4A4dAffordHousing180Accuracy",null,null,"Number","M4A4dAffordHousing180Accuracy"]
["FNPI_4e_I","M4A4eAvoidEvictionPart",null,null,"Number","M4A4eAvoidEvictionPart"]
["FNPI_4e_II","M4A4eAvoidEvictionTarget",null,null,"Number","M4A4eAvoidEvictionTarget"]
["FNPI_4e_III","M4A4eAvoidEvictionResults",null,null,"Number","M4A4eAvoidEvictionResults"]
["FNPI_4e_iv","M4A4eAvoidEvictionOutcome",null,null,"Number","M4A4eAvoidEvictionOutcome"]
["FNPI_4e_v","M4A4eAvoidEvictionAccuracy",null,null,"Number","M4A4eAvoidEvictionAccuracy"]
["FNPI_4f_I","M4A4fAvoidForeclosePart",null,null,"Number","M4A4fAvoidForeclosePart"]
["FNPI_4f_II","M4A4fAvoidForecloseTarget",null,null,"Number","M4A4fAvoidForecloseTarget"]
["FNPI_4f_III","M4A4fAvoidForecloseResults",null,null,"Number","M4A4fAvoidForecloseResults"]
["FNPI_4f_iv","M4A4fAvoidForecloseOutcome",null,null,"Number","M4A4fAvoidForecloseOutcome"]
["FNPI_4f_v","M4A4fAvoidForecloseAccuracy",null,null,"Number","M4A4fAvoidForecloseAccuracy"]
["FNPI_4g_I","M4A4gHealthSafeImprPart",null,null,"Number","M4A4gHealthSafeImprPart"]
["FNPI_4g_II","M4A4gHealthSafeImprTarget",null,null,"Number","M4A4gHealthSafeImprTarget"]
["FNPI_4g_III","M4A4gHealthSafeImprResults",null,null,"Number","M4A4gHealthSafeImprResults"]
["FNPI_4g_iv","M4A4gHealthSafeImprOutcome",null,null,"Number","M4A4gHealthSafeImprOutcome"]
["FNPI_4g_v","M4A4gHealthSafeImprAccuracy",null,null,"Number","M4A4gHealthSafeImprAccuracy"]
["FNPI_4h_I","M4A4hEnergyEffImprPart",null,null,"Number","M4A4hEnergyEffImprPart"]
["FNPI_4h_II","M4A4hEnergyEffImprTarget",null,null,"Number","M4A4hEnergyEffImprTarget"]
["FNPI_4h_III","M4A4hEnergyEffImprResults",null,null,"Number","M4A4hEnergyEffImprResults"]
["FNPI_4h_iv","M4A4hEnergyEffImprOutcome",null,null,"Number","M4A4hEnergyEffImprOutcome"]
["FNPI_4h_v","M4A4hEnergyEffImprAccuracy",null,null,"Number","M4A4hEnergyEffImprAccuracy"]
["FNPI 4z.1","M4A4zOtherHouse1Name",null,null,"Text","M4A4zOtherHouse1Name"]
["FNPI_4z.1_I","M4A4zOtherHouse1Part",null,null,"Number","M4A4zOtherHouse1Part"]
["FNPI_4z.1_II","M4A4zOtherHouse1Target",null,null,"Number","M4A4zOtherHouse1Target"]
["FNPI_4z.1_III","M4A4zOtherHouse1Results",null,null,"Number","M4A4zOtherHouse1Results"]
["FNPI 4z.1iv","M4A4zOtherHouse1Outcome",null,null,"Number","M4A4zOtherHouse1Outcome"]
["FNPI 4z.1v","M4A4zOtherHouse1Accuracy",null,null,"Number","M4A4zOtherHouse1Accuracy"]
["FNPI 4z.2","M4A4zOtherHouse2Name",null,null,"Text","M4A4zOtherHouse2Name"]
["FNPI_4z.2_I","M4A4zOtherHouse2Part",null,null,"Number","M4A4zOtherHouse2Part"]
["FNPI_4z.2_II","M4A4zOtherHouse2Target",null,null,"Number","M4A4zOtherHouse2Target"]
["FNPI_4z.2_III","M4A4zOtherHouse2Results",null,null,"Number","M4A4zOtherHouse2Results"]
["FNPI 4z.2iv","M4A4zOtherHouse2Outcome",null,null,"Number","M4A4zOtherHouse2Outcome"]
["FNPI 4z.2v","M4A4zOtherHouse2Accuracy",null,null,"Number","M4A4zOtherHouse2Accuracy"]
["FNPI 4z.3","M4A4zOtherHouse3Name",null,null,"Text","M4A4zOtherHouse3Name"]
["FNPI_4z.3_I","M4A4zOtherHouse3Part",null,null,"Number","M4A4zOtherHouse3Part"]
["FNPI_4z.3_II","M4A4zOtherHouse3Target",null,null,"Number","M4A4zOtherHouse3Target"]
["FNPI_4z.3_III","M4A4zOtherHouse3Results",null,null,"Number","M4A4zOtherHouse3Results"]
["FNPI 4z.3iv","M4A4zOtherHouse3Outcome",null,null,"Number","M4A4zOtherHouse3Outcome"]
["FNPI 4z.3v","M4A4zOtherHouse3Accuracy",null,null,"Number","M4A4zOtherHouse3Accuracy"]
["FNPI 4z.4","M4A4zOtherHouse4Name",null,null,"Text","M4A4zOtherHouse4Name"]
["FNPI_4z.4_I","M4A4zOtherHouse4Part",null,null,"Number","M4A4zOtherHouse4Part"]
["FNPI_4z.4_II","M4A4zOtherHouse4Target",null,null,"Number","M4A4zOtherHouse4Target"]
["FNPI_4z.4_III","M4A4zOtherHouse4Results",null,null,"Number","M4A4zOtherHouse4Results"]
["FNPI 4z.4iv","M4A4zOtherHouse4Outcome",null,null,"Number","M4A4zOtherHouse4Outcome"]
["FNPI 4z.4v","M4A4zOtherHouse4Accuracy",null,null,"Number","M4A4zOtherHouse4Accuracy"]
["FNPI 4z.5","M4A4zOtherHouse5Name",null,null,"Text","M4A4zOtherHouse5Name"]
["FNPI_4z.5_I","M4A4zOtherHouse5Part",null,null,"Number","M4A4zOtherHouse5Part"]
["FNPI_4z.5_II","M4A4zOtherHouse5Target",null,null,"Number","M4A4zOtherHouse5Target"]
["FNPI_4z.5_III","M4A4zOtherHouse5Results",null,null,"Number","M4A4zOtherHouse5Results"]
["FNPI 4z.5iv","M4A4zOtherHouse5Outcome",null,null,"Number","M4A4zOtherHouse5Outcome"]
["FNPI 4z.5v","M4A4zOtherHouse5Accuracy",null,null,"Number","M4A4zOtherHouse5Accuracy"]
["FNPI_Housing_Comments","M4A4Comments",null,null,"Memo","M4A4Comments"]
["FNPI_3a_I","M4A3aBasicNeeds90Part",null,null,"Number","M4A3aBasicNeeds90Part"]
["FNPI_3a_II","M4A3aBasicNeeds90Target",null,null,"Number","M4A3aBasicNeeds90Target"]
["FNPI_3a_III","M4A3aBasicNeeds90Results",null,null,"Number","M4A3aBasicNeeds90Results"]
["FNPI_3a_iv","M4A3aBasicNeeds90Outcome",null,null,"Number","M4A3aBasicNeeds90Outcome"]
["FNPI_3a_v","M4A3aBasicNeeds90Accuracy",null,null,"Number","M4A3aBasicNeeds90Accuracy"]
["FNPI_3b_I","M4A3bBasicNeeds180Part",null,null,"Number","M4A3bBasicNeeds180Part"]
["FNPI_3b_II","M4A3bBasicNeeds180Target",null,null,"Number","M4A3bBasicNeeds180Target"]
["FNPI_3b_III","M4A3bBasicNeeds180Results",null,null,"Number","M4A3bBasicNeeds180Results"]
["FNPI_3b_iv","M4A3bBasicNeeds180Outcome",null,null,"Number","M4A3bBasicNeeds180Outcome"]
["FNPI_3b_v","M4A3bBasicNeeds180Accuracy",null,null,"Number","M4A3bBasicNeeds180Accuracy"]
["FNPI_3c_I","M4A3cSavingsAcctPart",null,null,"Number","M4A3cSavingsAcctPart"]
["FNPI_3c_II","M4A3cSavingsAcctTarget",null,null,"Number","M4A3cSavingsAcctTarget"]
["FNPI_3c_III","M4A3cSavingsAcctResults",null,null,"Number","M4A3cSavingsAcctResults"]
["FNPI_3c_iv","M4A3cSavingsAcctOutcome",null,null,"Number","M4A3cSavingsAcctOutcome"]
["FNPI_3c_v","M4A3cSavingsAcctAccuracy",null,null,"Number","M4A3cSavingsAcctAccuracy"]
["FNPI_3d_I","M4A3dSavingsIncrPart",null,null,"Number","M4A3dSavingsIncrPart"]
["FNPI_3d_II","M4A3dSavingsIncrTarget",null,null,"Number","M4A3dSavingsIncrTarget"]
["FNPI_3d_III","M4A3dSavingsIncrResults",null,null,"Number","M4A3dSavingsIncrResults"]
["FNPI_3d_iv","M4A3dSavingsIncrOutcome",null,null,"Number","M4A3dSavingsIncrOutcome"]
["FNPI_3d_v","M4A3dSavingsIncrAccuracy",null,null,"Number","M4A3dSavingsIncrAccuracy"]
["FNPI 3e_1","M4A3ePurchAssetPart",null,null,"Number","M4A3ePurchAssetPart"]
["FNPI_3e_II","M4A3ePurchAssetTarget",null,null,"Number","M4A3ePurchAssetTarget"]
["FNPI_3e_III","M4A3ePurchAssetResults",null,null,"Number","M4A3ePurchAssetResults"]
["FNPI_3e_iv","M4A3ePurchAssetOutcome",null,null,"Number","M4A3ePurchAssetOutcome"]
["FNPI_3e_v","M4A3ePurchAssetAccuracy",null,null,"Number","M4A3ePurchAssetAccuracy"]
["FNPI_3f_I","M4A3fPurchHomePart",null,null,"Number","M4A3fPurchHomePart"]
["FNPI_3f_II","M4A3fPurchHomeTarget",null,null,"Number","M4A3fPurchHomeTarget"]
["FNPI_3f_III","M4A3fPurchHomeResults",null,null,"Number","M4A3fPurchHomeResults"]
["FNPI_3f_iv","M4A3fPurchHomeOutcome",null,null,"Number","M4A3fPurchHomeOutcome"]
["FNPI_3f_v","M4A3fPurchHomeAccuracy",null,null,"Number","M4A3fPurchHomeAccuracy"]
["FNPI_3g_I","M4A3gCreditScoreImprPart",null,null,"Number","M4A3gCreditScoreImprPart"]
["FNPI_3g_II","M4A3gCreditScoreImprTarget",null,null,"Number","M4A3gCreditScoreImprTarget"]
["FNPI_3g_III","M4A3gCreditScoreImprResults",null,null,"Number","M4A3gCreditScoreImprResults"]
["FNPI_3g_iv","M4A3gCreditScoreImprOutcome",null,null,"Number","M4A3gCreditScoreImprOutcome"]
["FNPI_3g_v","M4A3gCreditScoreImprAccuracy",null,null,"Number","M4A3gCreditScoreImprAccuracy"]
["FNPI_3h_I","M4A3hNetWorthIncrPart",null,null,"Number","M4A3hNetWorthIncrPart"]
["FNPI_3h_II","M4A3hNetWorthIncrTarget",null,null,"Number","M4A3hNetWorthIncrTarget"]
["FNPI_3h_III","M4A3hNetWorthIncrResults",null,null,"Number","M4A3hNetWorthIncrResults"]
["FNPI_3h_iv","M4A3hNetWorthIncrOutcome",null,null,"Number","M4A3hNetWorthIncrOutcome"]
["FNPI_3h_v","M4A3hNetWorthIncrAccuracy",null,null,"Number","M4A3hNetWorthIncrAccuracy"]
["FNPI_3i_I","M4A3iFinWellBeingImprPart",null,null,"Number","M4A3iFinWellBeingImprPart"]
["FNPI_3i_II","M4A3iFinWellBeingImprTarget",null,null,"Number","M4A3iFinWellBeingImprTarget"]
["FNPI_3i_III","M4A3iFinWellBeingImprResults",null,null,"Number","M4A3iFinWellBeingImprResults"]
["FNPI_3i_iv","M4A3iFinWellBeingImprOutcome",null,null,"Number","M4A3iFinWellBeingImprOutcome"]
["FNPI_3i_v","M4A3iFinWellBeingImprAccuracy",null,null,"Number","M4A3iFinWellBeingImprAccuracy"]
["FNPI 3z.1","M4A3zOtherInc1Name",null,null,"Text","M4A3zOtherInc1Name"]
["FNPI_3z.1_I","M4A3zOtherInc1Part",null,null,"Number","M4A3zOtherInc1Part"]
["FNPI_3z.1_II","M4A3zOtherInc1Target",null,null,"Number","M4A3zOtherInc1Target"]
["FNPI_3z.1_III","M4A3zOtherInc1Results",null,null,"Number","M4A3zOtherInc1Results"]
["FNPI 3z.1iv","M4A3zOtherInc1Outcome",null,null,"Number","M4A3zOtherInc1Outcome"]
["FNPI 3z.1v","M4A3zOtherInc1Accuracy",null,null,"Number","M4A3zOtherInc1Accuracy"]
["FNPI 3z.2","M4A3zOtherInc2Name",null,null,"Text","M4A3zOtherInc2Name"]
["FNPI_3z.2_I","M4A3zOtherInc2Part",null,null,"Number","M4A3zOtherInc2Part"]
["FNPI_3z.2_II","M4A3zOtherInc2Target",null,null,"Number","M4A3zOtherInc2Target"]
["FNPI_3z.2_III","M4A3zOtherInc2Results",null,null,"Number","M4A3zOtherInc2Results"]
["FNPI 3z.2iv","M4A3zOtherInc2Outcome",null,null,"Number","M4A3zOtherInc2Outcome"]
["FNPI 3z.2v","M4A3zOtherInc2Accuracy",null,null,"Number","M4A3zOtherInc2Accuracy"]
["FNPI 3z.3","M4A3zOtherInc3Name",null,null,"Text","M4A3zOtherInc3Name"]
["FNPI_3z.3_I","M4A3zOtherInc3Part",null,null,"Number","M4A3zOtherInc3Part"]
["FNPI_3z.3_II","M4A3zOtherInc3Target",null,null,"Number","M4A3zOtherInc3Target"]
["FNPI_3z.3_III","M4A3zOtherInc3Results",null,null,"Number","M4A3zOtherInc3Results"]
["FNPI 3z.3iv","M4A3zOtherInc3Outcome",null,null,"Number","M4A3zOtherInc3Outcome"]
["FNPI 3z.3v","M4A3zOtherInc3Accuracy",null,null,"Number","M4A3zOtherInc3Accuracy"]
["FNPI 3z.4","M4A3zOtherInc4Name",null,null,"Text","M4A3zOtherInc4Name"]
["FNPI_3z.4_I","M4A3zOtherInc4Part",null,null,"Number","M4A3zOtherInc4Part"]
["FNPI_3z.4_II","M4A3zOtherInc4Target",null,null,"Number","M4A3zOtherInc4Target"]
["FNPI_3z.4_III","M4A3zOtherInc4Results",null,null,"Number","M4A3zOtherInc4Results"]
["FNPI 3z.4iv","M4A3zOtherInc4Outcome",null,null,"Number","M4A3zOtherInc4Outcome"]
["FNPI 3z.4v","M4A3zOtherInc4Accuracy",null,null,"Number","M4A3zOtherInc4Accuracy"]
["FNPI 3z.5","M4A3zOtherInc5Name",null,null,"Text","M4A3zOtherInc5Name"]
["FNPI_3z.5_I","M4A3zOtherInc5Part",null,null,"Number","M4A3zOtherInc5Part"]
["FNPI_3z.5_II","M4A3zOtherInc5Target",null,null,"Number","M4A3zOtherInc5Target"]
["FNPI_3z.5_III","M4A3zOtherInc5Results",null,null,"Number","M4A3zOtherInc5Results"]
["FNPI 3z.5iv","M4A3zOtherInc5Outcome",null,null,"Number","M4A3zOtherInc5Outcome"]
["FNPI 3z.5v","M4A3zOtherInc5Accuracy",null,null,"Number","M4A3zOtherInc5Accuracy"]
["FNPI_Income_Comments","M4A3Comments",null,null,"Memo","M4A3Comments"]
["FNPI_7a_I","M4A7aMoreOutcomesPart",null,null,"Number","M4A7aMoreOutcomesPart"]
["FNPI_7a_II","M4A7aMoreOutcomesTarget",null,null,"Number","M4A7aMoreOutcomesTarget"]
["FNPI_7a_III","M4A7aMoreOutcomesResults",null,null,"Number","M4A7aMoreOutcomesResults"]
["FNPI_7a_iv","M4A7aMoreOutcomesOutcome",null,null,"Number","M4A7aMoreOutcomesOutcome"]
["FNPI_7a_v","M4A7aMoreOutcomesAccuracy",null,null,"Number","M4A7aMoreOutcomesAccuracy"]
["FNPI 7z.1","M4A7zOtherMult1Name",null,null,"Text","M4A7zOtherMult1Name"]
["FNPI_7z.1_I","M4A7zOtherMult1Part",null,null,"Number","M4A7zOtherMult1Part"]
["FNPI_7z.1_II","M4A7zOtherMult1Target",null,null,"Number","M4A7zOtherMult1Target"]
["FNPI_7z.1_III","M4A7zOtherMult1Results",null,null,"Number","M4A7zOtherMult1Results"]
["FNPI 7z.1iv","M4A7zOtherMult1Outcome",null,null,"Number","M4A7zOtherMult1Outcome"]
["FNPI 7z.1v","M4A7zOtherMult1Accuracy",null,null,"Number","M4A7zOtherMult1Accuracy"]
["FNPI 7z.2","M4A7zOtherMult2Name",null,null,"Text","M4A7zOtherMult2Name"]
["FNPI_7z.2_I","M4A7zOtherMult2Part",null,null,"Number","M4A7zOtherMult2Part"]
["FNPI_7z.2_II","M4A7zOtherMult2Target",null,null,"Number","M4A7zOtherMult2Target"]
["FNPI_7z.2_III","M4A7zOtherMult2Results",null,null,"Number","M4A7zOtherMult2Results"]
["FNPI 7z.2iv","M4A7zOtherMult2Outcome",null,null,"Number","M4A7zOtherMult2Outcome"]
["FNPI 7z.2v","M4A7zOtherMult2Accuracy",null,null,"Number","M4A7zOtherMult2Accuracy"]
["FNPI 7z.3","M4A7zOtherMult3Name",null,null,"Text","M4A7zOtherMult3Name"]
["FNPI_7z.3_I","M4A7zOtherMult3Part",null,null,"Number","M4A7zOtherMult3Part"]
["FNPI_7z.3_II","M4A7zOtherMult3Target",null,null,"Number","M4A7zOtherMult3Target"]
["FNPI_7z.3_III","M4A7zOtherMult3Results",null,null,"Number","M4A7zOtherMult3Results"]
["FNPI 7z.3iv","M4A7zOtherMult3Outcome",null,null,"Number","M4A7zOtherMult3Outcome"]
["FNPI 7z.3v","M4A7zOtherMult3Accuracy",null,null,"Number","M4A7zOtherMult3Accuracy"]
["FNPI 7z.4","M4A7zOtherMult4Name",null,null,"Text","M4A7zOtherMult4Name"]
["FNPI_7z.4_I","M4A7zOtherMult4Part",null,null,"Number","M4A7zOtherMult4Part"]
["FNPI_7z.4_II","M4A7zOtherMult4Target",null,null,"Number","M4A7zOtherMult4Target"]
["FNPI_7z.4_III","M4A7zOtherMult4Results",null,null,"Number","M4A7zOtherMult4Results"]
["FNPI 7z.4iv","M4A7zOtherMult4Outcome",null,null,"Number","M4A7zOtherMult4Outcome"]
["FNPI 7z.4v","M4A7zOtherMult4Accuracy",null,null,"Number","M4A7zOtherMult4Accuracy"]
["FNPI 7z.5","M4A7zOtherMult5Name",null,null,"Text","M4A7zOtherMult5Name"]
["FNPI_7z.5_I","M4A7zOtherMult5Part",null,null,"Number","M4A7zOtherMult5Part"]
["FNPI_7z.5_II","M4A7zOtherMult5Target",null,null,"Number","M4A7zOtherMult5Target"]
["FNPI_7z.5_III","M4A7zOtherMult5Results",null,null,"Number","M4A7zOtherMult5Results"]
["FNPI 7z.5iv","M4A7zOtherMult5Outcome",null,null,"Number","M4A7zOtherMult5Outcome"]
["FNPI 7z.5v","M4A7zOtherMult5Accuracy",null,null,"Number","M4A7zOtherMult5Accuracy"]
["FNPI_Multiple_Comments","M4A7Comments",null,null,"Memo","M4A7Comments"]
["SRV 6a Voter Education and Access","M4B6aCivicEngageVoterEdu",{"$f":"\"'='\" & MID(CELL(\"address\",INDIRECT(B743)),$I$3+1,100)","v":"'='Services Civic Eng. & Comm Inv.'!$C$6"},{"$f":"M4B6aCivicEngageVoterEdu","v":0},"Number","M4B6aCivicEngageVoterEdu"]
["SRV 6b Leadership Training","M4B6bCivicEngageLeadership",{"$f":"\"'='\" & MID(CELL(\"address\",INDIRECT(B744)),$I$3+1,100)","v":"'='Services Civic Eng. & Comm Inv.'!$C$8"},{"$f":"M4B6bCivicEngageLeadership","v":4},"Number","M4B6bCivicEngageLeadership"]
["SRV 6c Tri-partite Board Membership","M4B6cCivicEngageTripartite",{"$f":"\"'='\" & MID(CELL(\"address\",INDIRECT(B745)),$I$3+1,100)","v":"'='Services Civic Eng. & Comm Inv.'!$C$9"},{"$f":"M4B6cCivicEngageTripartite","v":12},"Number","M4B6cCivicEngageTripartite"]
["SRV 6d Citizenship Classes","M4B6dCivicEngageCitizen",{"$f":"\"'='\" & MID(CELL(\"address\",INDIRECT(B746)),$I$3+1,100)","v":"'='Services Civic Eng. & Comm Inv.'!$C$10"},{"$f":"M4B6dCivicEngageCitizen","v":0},"Number","M4B6dCivicEngageCitizen"]
["SRV 6e Getting Ahead Classes","M4B6eCivicEngageGetAhead",{"$f":"\"'='\" & MID(CELL(\"address\",INDIRECT(B747)),$I$3+1,100)","v":"'='Services Civic Eng. & Comm Inv.'!$C$11"},{"$f":"M4B6eCivicEngageGetAhead","v":24},"Number","M4B6eCivicEngageGetAhead"]
["SRV 6f Volunteer Training ","M4B6fCivicEngageVolTrain",{"$f":"\"'='\" & MID(CELL(\"address\",INDIRECT(B748)),$I$3+1,100)","v":"'='Services Civic Eng. & Comm Inv.'!$C$12"},{"$f":"M4B6fCivicEngageVolTrain","v":0},"Number","M4B6fCivicEngageVolTrain"]
["SRV 2a Early Head Start ","M4B2aEduEarlyHeadStart",{"$f":"\"'='\" & MID(CELL(\"address\",INDIRECT(B749)),$I$3+1,100)","v":"'='Services Education'!$C$7"},{"$f":"M4B2aEduEarlyHeadStart","v":0},"Number","M4B2aEduEarlyHeadStart"]
["SRV 2b Head Start","M4B2bEduHeadStart",{"$f":"\"'='\" & MID(CELL(\"address\",INDIRECT(B750)),$I$3+1,100)","v":"'='Services Education'!$C$8"},{"$f":"M4B2bEduHeadStart","v":0},"Number","M4B2bEduHeadStart"]
["SRV 2c Other Early-Childhood (0-5 yr. old) Education ","M4B2cEduOtherEarly",{"$f":"\"'='\" & MID(CELL(\"address\",INDIRECT(B751)),$I$3+1,100)","v":"'='Services Education'!$C$9"},{"$f":"M4B2cEduOtherEarly","v":0},"Number","M4B2cEduOtherEarly"]
["SRV 2d K-12 Education ","M4B2dEduK12",{"$f":"\"'='\" & MID(CELL(\"address\",INDIRECT(B752)),$I$3+1,100)","v":"'='Services Education'!$C$10"},{"$f":"M4B2dEduK12","v":0},"Number","M4B2dEduK12"]
["SRV 2e K-12 Support Services","M4B2eEduK12Support",{"$f":"\"'='\" & MID(CELL(\"address\",INDIRECT(B753)),$I$3+1,100)","v":"'='Services Education'!$C$11"},{"$f":"M4B2eEduK12Support","v":0},"Number","M4B2eEduK12Support"]
["SRV 2f Financial Literacy Education","M4B2fEduFinancialLit",{"$f":"\"'='\" & MID(CELL(\"address\",INDIRECT(B754)),$I$3+1,100)","v":"'='Services Education'!$C$12"},{"$f":"M4B2fEduFinancialLit","v":0},"Number","M4B2fEduFinancialLit"]
["SRV 2g Literacy/English Language Education","M4B2gEduEnglishLit",{"$f":"\"'='\" & MID(CELL(\"address\",INDIRECT(B755)),$I$3+1,100)","v":"'='Services Education'!$C$13"},{"$f":"M4B2gEduEnglishLit","v":0},"Number","M4B2gEduEnglishLit"]
["SRV 2h College-Readiness Preparation/Support  ","M4B2hEduCollegeReady",{"$f":"\"'='\" & MID(CELL(\"address\",INDIRECT(B756)),$I$3+1,100)","v":"'='Services Education'!$C$14"},{"$f":"M4B2hEduCollegeReady","v":0},"Number","M4B2hEduCollegeReady"]
["SRV 2i Other Post Secondary Preparation","M4B2iEduOtherPostSecPrep",{"$f":"\"'='\" & MID(CELL(\"address\",INDIRECT(B757)),$I$3+1,100)","v":"'='Services Education'!$C$15"},{"$f":"M4B2iEduOtherPostSecPrep","v":0},"Number","M4B2iEduOtherPostSecPrep"]
["SRV 2j Other Post Secondary Support","M4B2jEduOtherPostSecSup",{"$f":"\"'='\" & MID(CELL(\"address\",INDIRECT(B758)),$I$3+1,100)","v":"'='Services Education'!$C$16"},{"$f":"M4B2jEduOtherPostSecSup","v":0},"Number","M4B2jEduOtherPostSecSup"]
["SRV 2k School Supplies","M4B2kSchoolSupplies",{"$f":"\"'='\" & MID(CELL(\"address\",INDIRECT(B759)),$I$3+1,100)","v":"'='Services Education'!$C$18"},{"$f":"M4B2kSchoolSupplies","v":0},"Number","M4B2kSchoolSupplies"]
["SRV 2l Before and After School Activities","M4B2lExtraCurrBeforeAfter",{"$f":"\"'='\" & MID(CELL(\"address\",INDIRECT(B760)),$I$3+1,100)","v":"'='Services Education'!$C$20"},{"$f":"M4B2lExtraCurrBeforeAfter","v":0},"Number","M4B2lExtraCurrBeforeAfter"]
["SRV 2m Summer Youth Recreational Activities","M4B2mExtraCurrSummerRec",{"$f":"\"'='\" & MID(CELL(\"address\",INDIRECT(B761)),$I$3+1,100)","v":"'='Services Education'!$C$21"},{"$f":"M4B2mExtraCurrSummerRec","v":0},"Number","M4B2mExtraCurrSummerRec"]
["SRV 2n Summer Education Programs","M4B2nExtraCurrSummerEdu",{"$f":"\"'='\" & MID(CELL(\"address\",INDIRECT(B762)),$I$3+1,100)","v":"'='Services Education'!$C$22"},{"$f":"M4B2nExtraCurrSummerEdu","v":0},"Number","M4B2nExtraCurrSummerEdu"]
["SRV 2o Behavior Improvement Programs (attitude, self-esteem, Dress-for-Success, etc.)","M4B2oExtraCurrBehavior",{"$f":"\"'='\" & MID(CELL(\"address\",INDIRECT(B763)),$I$3+1,100)","v":"'='Services Education'!$C$23"},{"$f":"M4B2oExtraCurrBehavior","v":0},"Number","M4B2oExtraCurrBehavior"]
["SRV 2p Mentoring","M4B2pExtraCurrMentor",{"$f":"\"'='\" & MID(CELL(\"address\",INDIRECT(B764)),$I$3+1,100)","v":"'='Services Education'!$C$24"},{"$f":"M4B2pExtraCurrMentor","v":0},"Number","M4B2pExtraCurrMentor"]
["SRV 2q Leadership Training","M4B2qExtraCurrLeadership",{"$f":"\"'='\" & MID(CELL(\"address\",INDIRECT(B765)),$I$3+1,100)","v":"'='Services Education'!$C$25"},{"$f":"M4B2qExtraCurrLeadership","v":0},"Number","M4B2qExtraCurrLeadership"]
["SRV 2r Adult Literacy Classes","M4B2rAdultEduLit",{"$f":"\"'='\" & MID(CELL(\"address\",INDIRECT(B766)),$I$3+1,100)","v":"'='Services Education'!$C$27"},{"$f":"M4B2rAdultEduLit","v":0},"Number","M4B2rAdultEduLit"]
["SRV 2s English Language Classes","M4B2sAdultEduEnglish",{"$f":"\"'='\" & MID(CELL(\"address\",INDIRECT(B767)),$I$3+1,100)","v":"'='Services Education'!$C$28"},{"$f":"M4B2sAdultEduEnglish","v":0},"Number","M4B2sAdultEduEnglish"]
["SRV 2t Basic Education Classes  ","M4B2tAdultEduBasic",{"$f":"\"'='\" & MID(CELL(\"address\",INDIRECT(B768)),$I$3+1,100)","v":"'='Services Education'!$C$29"},{"$f":"M4B2tAdultEduBasic","v":0},"Number","M4B2tAdultEduBasic"]
["SRV 2u High School Equivalency Classes","M4B2uAdultEduHighSchool",{"$f":"\"'='\" & MID(CELL(\"address\",INDIRECT(B769)),$I$3+1,100)","v":"'='Services Education'!$C$30"},{"$f":"M4B2uAdultEduHighSchool","v":0},"Number","M4B2uAdultEduHighSchool"]
["SRV 2v Leadership Training","M4B2vAdultEduLeadership",{"$f":"\"'='\" & MID(CELL(\"address\",INDIRECT(B770)),$I$3+1,100)","v":"'='Services Education'!$C$31"},{"$f":"M4B2vAdultEduLeadership","v":0},"Number","M4B2vAdultEduLeadership"]
["SRV 2w Parenting Supports (may be a part of the early childhood programs identified above)","M4B2wAdultEduParenting",{"$f":"\"'='\" & MID(CELL(\"address\",INDIRECT(B771)),$I$3+1,100)","v":"'='Services Education'!$C$32"},{"$f":"M4B2wAdultEduParenting","v":0},"Number","M4B2wAdultEduParenting"]
["SRV 2x Applied Technology Classes","M4B2xAdultEduAppliedTech",{"$f":"\"'='\" & MID(CELL(\"address\",INDIRECT(B772)),$I$3+1,100)","v":"'='Services Education'!$C$33"},{"$f":"M4B2xAdultEduAppliedTech","v":0},"Number","M4B2xAdultEduAppliedTech"]
["SRV 2y Post-Secondary Education Preparation","M4B2yAdultEduPostSecPrep",{"$f":"\"'='\" & MID(CELL(\"address\",INDIRECT(B773)),$I$3+1,100)","v":"'='Services Education'!$C$34"},{"$f":"M4B2yAdultEduPostSecPrep","v":0},"Number","M4B2yAdultEduPostSecPrep"]
["SRV 2z Financial Literacy Education","M4B2zAdultEduFinancialLit",{"$f":"\"'='\" & MID(CELL(\"address\",INDIRECT(B774)),$I$3+1,100)","v":"'='Services Education'!$C$35"},{"$f":"M4B2zAdultEduFinancialLit","v":0},"Number","M4B2zAdultEduFinancialLit"]
["SRV 2aa College applications, text books, computers, etc.","M4B2aaPostSecEduSupports",{"$f":"\"'='\" & MID(CELL(\"address\",INDIRECT(B775)),$I$3+1,100)","v":"'='Services Education'!$C$37"},{"$f":"M4B2aaPostSecEduSupports","v":0},"Number","M4B2aaPostSecEduSupports"]
["SRV 2bb Scholarships","M4B2bbFinancialAid",{"$f":"\"'='\" & MID(CELL(\"address\",INDIRECT(B776)),$I$3+1,100)","v":"'='Services Education'!$C$39"},{"$f":"M4B2bbFinancialAid","v":0},"Number","M4B2bbFinancialAid"]
["SRV 2cc Home Visits","M4B2ccHomeVisits",{"$f":"\"'='\" & MID(CELL(\"address\",INDIRECT(B777)),$I$3+1,100)","v":"'='Services Education'!$C$41"},{"$f":"M4B2ccHomeVisits","v":4},"Number","M4B2ccHomeVisits"]
["SRV 1a Vocational Training ","M4B1aSkillsVocational",{"$f":"\"'='\" & MID(CELL(\"address\",INDIRECT(B778)),$I$3+1,100)","v":"'='Services Employment'!$C$8"},{"$f":"M4B1aSkillsVocational","v":12},"Number","M4B1aSkillsVocational"]
["SRV 1b On-the-Job and other Work Experience ","M4B1bSkillsOTJ",{"$f":"\"'='\" & MID(CELL(\"address\",INDIRECT(B779)),$I$3+1,100)","v":"'='Services Employment'!$C$9"},{"$f":"M4B1bSkillsOTJ","v":4},"Number","M4B1bSkillsOTJ"]
["SRV 1c Youth Summer Work Placements","M4B1cSkillsYouthSummer",{"$f":"\"'='\" & MID(CELL(\"address\",INDIRECT(B780)),$I$3+1,100)","v":"'='Services Employment'!$C$10"},{"$f":"M4B1cSkillsYouthSummer","v":0},"Number","M4B1cSkillsYouthSummer"]
["SRV 1d Apprenticeship/Internship","M4B1dSkillsApprentice",{"$f":"\"'='\" & MID(CELL(\"address\",INDIRECT(B781)),$I$3+1,100)","v":"'='Services Employment'!$C$11"},{"$f":"M4B1dSkillsApprentice","v":0},"Number","M4B1dSkillsApprentice"]
["SRV 1e Self-Employment Skills Training  ","M4B1eSkillsSelfEmploy",{"$f":"\"'='\" & MID(CELL(\"address\",INDIRECT(B782)),$I$3+1,100)","v":"'='Services Employment'!$C$12"},{"$f":"M4B1eSkillsSelfEmploy","v":0},"Number","M4B1eSkillsSelfEmploy"]
["SRV 1f Job Readiness Training  ","M4B1fSkillsJobReadiness",{"$f":"\"'='\" & MID(CELL(\"address\",INDIRECT(B783)),$I$3+1,100)","v":"'='Services Employment'!$C$13"},{"$f":"M4B1fSkillsJobReadiness","v":13},"Number","M4B1fSkillsJobReadiness"]
["SRV 1g Workshops","M4B1gCareerWorkshops",{"$f":"\"'='\" & MID(CELL(\"address\",INDIRECT(B784)),$I$3+1,100)","v":"'='Services Employment'!$C$15"},{"$f":"M4B1gCareerWorkshops","v":4},"Number","M4B1gCareerWorkshops"]
["SRV 1h Coaching ","M4B1hCareerCoaching",{"$f":"\"'='\" & MID(CELL(\"address\",INDIRECT(B785)),$I$3+1,100)","v":"'='Services Employment'!$C$16"},{"$f":"M4B1hCareerCoaching","v":4},"Number","M4B1hCareerCoaching"]
["SRV 1i Coaching ","M4B1iJobSearchCoaching",{"$f":"\"'='\" & MID(CELL(\"address\",INDIRECT(B786)),$I$3+1,100)","v":"'='Services Employment'!$C$18"},{"$f":"M4B1iJobSearchCoaching","v":13},"Number","M4B1iJobSearchCoaching"]
["SRV 1j Resume Development ","M4B1jJobSearchResume",{"$f":"\"'='\" & MID(CELL(\"address\",INDIRECT(B787)),$I$3+1,100)","v":"'='Services Employment'!$C$19"},{"$f":"M4B1jJobSearchResume","v":17},"Number","M4B1jJobSearchResume"]
["SRV 1k Interview Skills Training ","M4B1kJobSearchInterview",{"$f":"\"'='\" & MID(CELL(\"address\",INDIRECT(B788)),$I$3+1,100)","v":"'='Services Employment'!$C$20"},{"$f":"M4B1kJobSearchInterview","v":14},"Number","M4B1kJobSearchInterview"]
["SRV 1l Job Referrals","M4B1lJobSearchReferral",{"$f":"\"'='\" & MID(CELL(\"address\",INDIRECT(B789)),$I$3+1,100)","v":"'='Services Employment'!$C$21"},{"$f":"M4B1lJobSearchReferral","v":65},"Number","M4B1lJobSearchReferral"]
["SRV 1m Job Placements","M4B1mJobSearchPlacement",{"$f":"\"'='\" & MID(CELL(\"address\",INDIRECT(B790)),$I$3+1,100)","v":"'='Services Employment'!$C$22"},{"$f":"M4B1mJobSearchPlacement","v":12},"Number","M4B1mJobSearchPlacement"]
["SRV 1n Pre-employment physicals, background checks, etc.","M4B1nJobSearchBackground",{"$f":"\"'='\" & MID(CELL(\"address\",INDIRECT(B791)),$I$3+1,100)","v":"'='Services Employment'!$C$23"},{"$f":"M4B1nJobSearchBackground","v":0},"Number","M4B1nJobSearchBackground"]
["SRV 1o Coaching ","M4B1oPostEmployCoaching",{"$f":"\"'='\" & MID(CELL(\"address\",INDIRECT(B792)),$I$3+1,100)","v":"'='Services Employment'!$C$25"},{"$f":"M4B1oPostEmployCoaching","v":2},"Number","M4B1oPostEmployCoaching"]
["SRV 1p Interactions with employers ","M4B1pPostEmployInteraction",{"$f":"\"'='\" & MID(CELL(\"address\",INDIRECT(B793)),$I$3+1,100)","v":"'='Services Employment'!$C$26"},{"$f":"M4B1pPostEmployInteraction","v":5},"Number","M4B1pPostEmployInteraction"]
["SRV 1q Employment Supplies","M4B1qEmploySupplies",{"$f":"\"'='\" & MID(CELL(\"address\",INDIRECT(B794)),$I$3+1,100)","v":"'='Services Employment'!$C$28"},{"$f":"M4B1qEmploySupplies","v":0},"Number","M4B1qEmploySupplies"]
["SRV 5a Immunizations","M4B5aHealthServImmun",{"$f":"\"'='\" & MID(CELL(\"address\",INDIRECT(B795)),$I$3+1,100)","v":"'='Services Health and Social'!$C$7"},{"$f":"M4B5aHealthServImmun","v":0},"Number","M4B5aHealthServImmun"]
["SRV 5b Physicals","M4B5bHealthServPhysical",{"$f":"\"'='\" & MID(CELL(\"address\",INDIRECT(B796)),$I$3+1,100)","v":"'='Services Health and Social'!$C$8"},{"$f":"M4B5bHealthServPhysical","v":0},"Number","M4B5bHealthServPhysical"]
["SRV 5c Developmental Delay Screening","M4B5cHealthServDevScreen",{"$f":"\"'='\" & MID(CELL(\"address\",INDIRECT(B797)),$I$3+1,100)","v":"'='Services Health and Social'!$C$9"},{"$f":"M4B5cHealthServDevScreen","v":0},"Number","M4B5cHealthServDevScreen"]
["SRV 5d Vision  Screening","M4B5dHealthServVisionScreen",{"$f":"\"'='\" & MID(CELL(\"address\",INDIRECT(B798)),$I$3+1,100)","v":"'='Services Health and Social'!$C$10"},{"$f":"M4B5dHealthServVisionScreen","v":0},"Number","M4B5dHealthServVisionScreen"]
["SRV 5e Prescription Payments","M4B5eHealthServRxPay",{"$f":"\"'='\" & MID(CELL(\"address\",INDIRECT(B799)),$I$3+1,100)","v":"'='Services Health and Social'!$C$11"},{"$f":"M4B5eHealthServRxPay","v":0},"Number","M4B5eHealthServRxPay"]
["SRV 5f Doctor Visit Payments","M4B5fHealthServDrPay",{"$f":"\"'='\" & MID(CELL(\"address\",INDIRECT(B800)),$I$3+1,100)","v":"'='Services Health and Social'!$C$12"},{"$f":"M4B5fHealthServDrPay","v":0},"Number","M4B5fHealthServDrPay"]
["SRV 5g Maternal/Child Health","M4B5gHealthServMaternalHealth",{"$f":"\"'='\" & MID(CELL(\"address\",INDIRECT(B801)),$I$3+1,100)","v":"'='Services Health and Social'!$C$13"},{"$f":"M4B5gHealthServMaternalHealth","v":0},"Number","M4B5gHealthServMaternalHealth"]
["SRV 5h Nursing Care Sessions","M4B5hHealthServNursing",{"$f":"\"'='\" & MID(CELL(\"address\",INDIRECT(B802)),$I$3+1,100)","v":"'='Services Health and Social'!$C$14"},{"$f":"M4B5hHealthServNursing","v":0},"Number","M4B5hHealthServNursing"]
["SRV 5i In-Home Affordable Seniors/Disabled Care Sessions\n(Nursing, Chores, Personal Care Services) ","M4B5iHealthServInHome",{"$f":"\"'='\" & MID(CELL(\"address\",INDIRECT(B803)),$I$3+1,100)","v":"'='Services Health and Social'!$C$15"},{"$f":"M4B5iHealthServInHome","v":0},"Number","M4B5iHealthServInHome"]
["SRV 5j Health Insurance Options Counseling","M4B5jHealthServeInsCounsel",{"$f":"\"'='\" & MID(CELL(\"address\",INDIRECT(B804)),$I$3+1,100)","v":"'='Services Health and Social'!$C$16"},{"$f":"M4B5jHealthServeInsCounsel","v":0},"Number","M4B5jHealthServeInsCounsel"]
["SRV 5k Coaching Sessions","M4B5kReprodHealthCoach",{"$f":"\"'='\" & MID(CELL(\"address\",INDIRECT(B805)),$I$3+1,100)","v":"'='Services Health and Social'!$C$18"},{"$f":"M4B5kReprodHealthCoach","v":0},"Number","M4B5kReprodHealthCoach"]
["SRV 5l Family Planning Classes","M4B5lReprodHealthPlan",{"$f":"\"'='\" & MID(CELL(\"address\",INDIRECT(B806)),$I$3+1,100)","v":"'='Services Health and Social'!$C$19"},{"$f":"M4B5lReprodHealthPlan","v":0},"Number","M4B5lReprodHealthPlan"]
["SRV 5m Contraceptives","M4B5mReprodHealthContra",{"$f":"\"'='\" & MID(CELL(\"address\",INDIRECT(B807)),$I$3+1,100)","v":"'='Services Health and Social'!$C$20"},{"$f":"M4B5mReprodHealthContra","v":0},"Number","M4B5mReprodHealthContra"]
["SRV 5n STI/HIV Prevention Counseling Sessions","M4B5nReprodHealthSTIPrev",{"$f":"\"'='\" & MID(CELL(\"address\",INDIRECT(B808)),$I$3+1,100)","v":"'='Services Health and Social'!$C$21"},{"$f":"M4B5nReprodHealthSTIPrev","v":0},"Number","M4B5nReprodHealthSTIPrev"]
["SRV 5o STI/HIV Screenings","M4B5oReprodHealthSTIScreen",{"$f":"\"'='\" & MID(CELL(\"address\",INDIRECT(B809)),$I$3+1,100)","v":"'='Services Health and Social'!$C$22"},{"$f":"M4B5oReprodHealthSTIScreen","v":0},"Number","M4B5oReprodHealthSTIScreen"]
["SRV 5p Wellness Classes (stress reduction, medication management, mindfulness, etc.)","M4B5pWellnessEduClass",{"$f":"\"'='\" & MID(CELL(\"address\",INDIRECT(B810)),$I$3+1,100)","v":"'='Services Health and Social'!$C$24"},{"$f":"M4B5pWellnessEduClass","v":0},"Number","M4B5pWellnessEduClass"]
["SRV 5q Exercise/Fitness ","M4B5qWellnessEduFitness",{"$f":"\"'='\" & MID(CELL(\"address\",INDIRECT(B811)),$I$3+1,100)","v":"'='Services Health and Social'!$C$25"},{"$f":"M4B5qWellnessEduFitness","v":0},"Number","M4B5qWellnessEduFitness"]
["SRV 5r Detoxification Sessions","M4B5rMentalHealthDetox",{"$f":"\"'='\" & MID(CELL(\"address\",INDIRECT(B812)),$I$3+1,100)","v":"'='Services Health and Social'!$C$27"},{"$f":"M4B5rMentalHealthDetox","v":0},"Number","M4B5rMentalHealthDetox"]
["SRV 5s Substance Abuse Screenings","M4B5sMentalHealthSubAbuseScreen",{"$f":"\"'='\" & MID(CELL(\"address\",INDIRECT(B813)),$I$3+1,100)","v":"'='Services Health and Social'!$C$28"},{"$f":"M4B5sMentalHealthSubAbuseScreen","v":0},"Number","M4B5sMentalHealthSubAbuseScreen"]
["SRV 5t Substance Abuse Counseling ","M4B5tMentalHealthSubAbuseCounsel",{"$f":"\"'='\" & MID(CELL(\"address\",INDIRECT(B814)),$I$3+1,100)","v":"'='Services Health and Social'!$C$29"},{"$f":"M4B5tMentalHealthSubAbuseCounsel","v":0},"Number","M4B5tMentalHealthSubAbuseCounsel"]
["SRV 5u Mental Health Assessments","M4B5uMentalHealthAssess",{"$f":"\"'='\" & MID(CELL(\"address\",INDIRECT(B815)),$I$3+1,100)","v":"'='Services Health and Social'!$C$30"},{"$f":"M4B5uMentalHealthAssess","v":7},"Number","M4B5uMentalHealthAssess"]
["SRV 5v Mental Health Counseling ","M4B5vMentalHealthCounsel",{"$f":"\"'='\" & MID(CELL(\"address\",INDIRECT(B816)),$I$3+1,100)","v":"'='Services Health and Social'!$C$31"},{"$f":"M4B5vMentalHealthCounsel","v":7},"Number","M4B5vMentalHealthCounsel"]
["SRV 5w Crisis Response/Call-In Responses","M4B5wMentalHealthResponse",{"$f":"\"'='\" & MID(CELL(\"address\",INDIRECT(B817)),$I$3+1,100)","v":"'='Services Health and Social'!$C$32"},{"$f":"M4B5wMentalHealthResponse","v":0},"Number","M4B5wMentalHealthResponse"]
["SRV 5x Domestic Violence Programs","M4B5xMentalHealthDomVio",{"$f":"\"'='\" & MID(CELL(\"address\",INDIRECT(B818)),$I$3+1,100)","v":"'='Services Health and Social'!$C$33"},{"$f":"M4B5xMentalHealthDomVio","v":0},"Number","M4B5xMentalHealthDomVio"]
["SRV 5y Substance Abuse Support Group Meetings","M4B5ySupportGroupsSubAbuse",{"$f":"\"'='\" & MID(CELL(\"address\",INDIRECT(B819)),$I$3+1,100)","v":"'='Services Health and Social'!$C$35"},{"$f":"M4B5ySupportGroupsSubAbuse","v":0},"Number","M4B5ySupportGroupsSubAbuse"]
["SRV 5z Domestic Violence Support Group Meetings","M4B5zSupportGroupsDomVio",{"$f":"\"'='\" & MID(CELL(\"address\",INDIRECT(B820)),$I$3+1,100)","v":"'='Services Health and Social'!$C$36"},{"$f":"M4B5zSupportGroupsDomVio","v":0},"Number","M4B5zSupportGroupsDomVio"]
["SRV 5aa Mental Health Support Group Meeting","M4B5aaSupportGroupsMentalHealth",{"$f":"\"'='\" & MID(CELL(\"address\",INDIRECT(B821)),$I$3+1,100)","v":"'='Services Health and Social'!$C$37"},{"$f":"M4B5aaSupportGroupsMentalHealth","v":0},"Number","M4B5aaSupportGroupsMentalHealth"]
["SRV 5bb Adult Dental Screening/Exams","M4B5bbDentalAdultScreen",{"$f":"\"'='\" & MID(CELL(\"address\",INDIRECT(B822)),$I$3+1,100)","v":"'='Services Health and Social'!$C$40"},{"$f":"M4B5bbDentalAdultScreen","v":0},"Number","M4B5bbDentalAdultScreen"]
["SRV 5cc Adult Dental Services (including Emergency Dental Procedures)","M4B5ccDentalAdultServ",{"$f":"\"'='\" & MID(CELL(\"address\",INDIRECT(B823)),$I$3+1,100)","v":"'='Services Health and Social'!$C$41"},{"$f":"M4B5ccDentalAdultServ","v":0},"Number","M4B5ccDentalAdultServ"]
["SRV 5dd Child Dental Screenings/Exams","M4B5ddDentalChildScreen",{"$f":"\"'='\" & MID(CELL(\"address\",INDIRECT(B824)),$I$3+1,100)","v":"'='Services Health and Social'!$C$42"},{"$f":"M4B5ddDentalChildScreen","v":0},"Number","M4B5ddDentalChildScreen"]
["SRV 5ee Child Dental Services (including Emergency Dental Procedures)","M4B5eeDentalChildServ",{"$f":"\"'='\" & MID(CELL(\"address\",INDIRECT(B825)),$I$3+1,100)","v":"'='Services Health and Social'!$C$43"},{"$f":"M4B5eeDentalChildServ","v":0},"Number","M4B5eeDentalChildServ"]
["SRV 5ff Skills Classes (Gardening, Cooking, Nutrition)","M4B5ffNutritionSkills",{"$f":"\"'='\" & MID(CELL(\"address\",INDIRECT(B826)),$I$3+1,100)","v":"'='Services Health and Social'!$C$45"},{"$f":"M4B5ffNutritionSkills","v":6},"Number","M4B5ffNutritionSkills"]
["SRV 5gg Community Gardening Activities","M4B5ggNutritionGardening",{"$f":"\"'='\" & MID(CELL(\"address\",INDIRECT(B827)),$I$3+1,100)","v":"'='Services Health and Social'!$C$46"},{"$f":"M4B5ggNutritionGardening","v":4},"Number","M4B5ggNutritionGardening"]
["SRV 5hh Incentives (e.g. gift card for food preparation, rewards for participation, etc.)","M4B5hhNutritionIncentives",{"$f":"\"'='\" & MID(CELL(\"address\",INDIRECT(B828)),$I$3+1,100)","v":"'='Services Health and Social'!$C$47"},{"$f":"M4B5hhNutritionIncentives","v":0},"Number","M4B5hhNutritionIncentives"]
["SRV 5ii Prepared Meals","M4B5iiNutritionPrepMeals",{"$f":"\"'='\" & MID(CELL(\"address\",INDIRECT(B829)),$I$3+1,100)","v":"'='Services Health and Social'!$C$48"},{"$f":"M4B5iiNutritionPrepMeals","v":0},"Number","M4B5iiNutritionPrepMeals"]
["SRV 5jj Food Distribution (Food Bags/Boxes, Food Share Program, Bags of Groceries)  ","M4B5jjNutritionFoodDist",{"$f":"\"'='\" & MID(CELL(\"address\",INDIRECT(B830)),$I$3+1,100)","v":"'='Services Health and Social'!$C$49"},{"$f":"M4B5jjNutritionFoodDist","v":2485},"Number","M4B5jjNutritionFoodDist"]
["SRV 5kk Family Mentoring Sessions","M4B5kkFamilySkillMentor",{"$f":"\"'='\" & MID(CELL(\"address\",INDIRECT(B831)),$I$3+1,100)","v":"'='Services Health and Social'!$C$51"},{"$f":"M4B5kkFamilySkillMentor","v":0},"Number","M4B5kkFamilySkillMentor"]
["SRV 5ll Life Skills Coaching Sessions","M4B5llFamilySkillsLife",{"$f":"\"'='\" & MID(CELL(\"address\",INDIRECT(B832)),$I$3+1,100)","v":"'='Services Health and Social'!$C$52"},{"$f":"M4B5llFamilySkillsLife","v":0},"Number","M4B5llFamilySkillsLife"]
["SRV 5mm Parenting Classes","M4B5mmFamilySkillsParent",{"$f":"\"'='\" & MID(CELL(\"address\",INDIRECT(B833)),$I$3+1,100)","v":"'='Services Health and Social'!$C$53"},{"$f":"M4B5mmFamilySkillsParent","v":0},"Number","M4B5mmFamilySkillsParent"]
["SRV 5nn Kits/boxes","M4B5nnEmerHygieneKits",{"$f":"\"'='\" & MID(CELL(\"address\",INDIRECT(B834)),$I$3+1,100)","v":"'='Services Health and Social'!$C$55"},{"$f":"M4B5nnEmerHygieneKits","v":27},"Number","M4B5nnEmerHygieneKits"]
["SRV 5oo Hygiene Facility Utilizations (e.g. showers, toilets, sinks)","M4B5ooEmerHygieneFacility",{"$f":"\"'='\" & MID(CELL(\"address\",INDIRECT(B835)),$I$3+1,100)","v":"'='Services Health and Social'!$C$56"},{"$f":"M4B5ooEmerHygieneFacility","v":0},"Number","M4B5ooEmerHygieneFacility"]
["SRV 4a Financial Capability Skill Training ","M4B4aHousePayFinancialCap",{"$f":"\"'='\" & MID(CELL(\"address\",INDIRECT(B836)),$I$3+1,100)","v":"'='Services Housing'!$C$7"},{"$f":"M4B4aHousePayFinancialCap","v":7},"Number","M4B4aHousePayFinancialCap"]
["SRV 4b Financial Coaching/Counseling ","M4B4bHousePayFinancialCounsel",{"$f":"\"'='\" & MID(CELL(\"address\",INDIRECT(B837)),$I$3+1,100)","v":"'='Services Housing'!$C$8"},{"$f":"M4B4bHousePayFinancialCounsel","v":4},"Number","M4B4bHousePayFinancialCounsel"]
["SRV 4c Rent Payments (includes Emergency Rent Payments)","M4B4cHousePayRent",{"$f":"\"'='\" & MID(CELL(\"address\",INDIRECT(B838)),$I$3+1,100)","v":"'='Services Housing'!$C$9"},{"$f":"M4B4cHousePayRent","v":338},"Number","M4B4cHousePayRent"]
["SRV 4d Deposit Payments","M4B4dHousePayDeposit",{"$f":"\"'='\" & MID(CELL(\"address\",INDIRECT(B839)),$I$3+1,100)","v":"'='Services Housing'!$C$10"},{"$f":"M4B4dHousePayDeposit","v":46},"Number","M4B4dHousePayDeposit"]
["SRV 4e Mortgage Payments (includes Emergency Mortgage Payments)","M4B4eHousePayMortgage",{"$f":"\"'='\" & MID(CELL(\"address\",INDIRECT(B840)),$I$3+1,100)","v":"'='Services Housing'!$C$11"},{"$f":"M4B4eHousePayMortgage","v":4},"Number","M4B4eHousePayMortgage"]
["SRV 4f Eviction Counseling ","M4B4fEvictCounseling",{"$f":"\"'='\" & MID(CELL(\"address\",INDIRECT(B841)),$I$3+1,100)","v":"'='Services Housing'!$C$13"},{"$f":"M4B4fEvictCounseling","v":2},"Number","M4B4fEvictCounseling"]
["SRV 4g Landlord/Tenant Mediations","M4B4gEvictLandlordMed",{"$f":"\"'='\" & MID(CELL(\"address\",INDIRECT(B842)),$I$3+1,100)","v":"'='Services Housing'!$C$14"},{"$f":"M4B4gEvictLandlordMed","v":15},"Number","M4B4gEvictLandlordMed"]
["SRV 4h Landlord/Tenant Rights Education ","M4B4hEvictLandlordEdu",{"$f":"\"'='\" & MID(CELL(\"address\",INDIRECT(B843)),$I$3+1,100)","v":"'='Services Housing'!$C$15"},{"$f":"M4B4hEvictLandlordEdu","v":4},"Number","M4B4hEvictLandlordEdu"]
["SRV 4i Utility Payments (LIHEAP-includes Emergency Utility Payments)","M4B4iUtilityPayment",{"$f":"\"'='\" & MID(CELL(\"address\",INDIRECT(B844)),$I$3+1,100)","v":"'='Services Housing'!$C$17"},{"$f":"M4B4iUtilityPayment","v":213},"Number","M4B4iUtilityPayment"]
["SRV 4j Utility Deposits","M4B4jUtilityDeposit",{"$f":"\"'='\" & MID(CELL(\"address\",INDIRECT(B845)),$I$3+1,100)","v":"'='Services Housing'!$C$18"},{"$f":"M4B4jUtilityDeposit","v":0},"Number","M4B4jUtilityDeposit"]
["SRV 4k Utility Arrears Payments","M4B4kUtilityArrears",{"$f":"\"'='\" & MID(CELL(\"address\",INDIRECT(B846)),$I$3+1,100)","v":"'='Services Housing'!$C$19"},{"$f":"M4B4kUtilityArrears","v":127},"Number","M4B4kUtilityArrears"]
["SRV 4l Level Billing Assistance","M4B4lUtilityLevelBill",{"$f":"\"'='\" & MID(CELL(\"address\",INDIRECT(B847)),$I$3+1,100)","v":"'='Services Housing'!$C$20"},{"$f":"M4B4lUtilityLevelBill","v":0},"Number","M4B4lUtilityLevelBill"]
["SRV 4m Temporary Housing Placement (includes Emergency Shelters)","M4B4mHousePlaceTemp",{"$f":"\"'='\" & MID(CELL(\"address\",INDIRECT(B848)),$I$3+1,100)","v":"'='Services Housing'!$C$22"},{"$f":"M4B4mHousePlaceTemp","v":0},"Number","M4B4mHousePlaceTemp"]
["SRV 4n Transitional Housing Placements","M4B4nHousePlaceTransition",{"$f":"\"'='\" & MID(CELL(\"address\",INDIRECT(B849)),$I$3+1,100)","v":"'='Services Housing'!$C$23"},{"$f":"M4B4nHousePlaceTransition","v":0},"Number","M4B4nHousePlaceTransition"]
["SRV 4o Permanent Housing Placements ","M4B4oHousePlacePerm",{"$f":"\"'='\" & MID(CELL(\"address\",INDIRECT(B850)),$I$3+1,100)","v":"'='Services Housing'!$C$24"},{"$f":"M4B4oHousePlacePerm","v":0},"Number","M4B4oHousePlacePerm"]
["SRV 4p Rental Counseling ","M4B4pHousePlaceRentCouns",{"$f":"\"'='\" & MID(CELL(\"address\",INDIRECT(B851)),$I$3+1,100)","v":"'='Services Housing'!$C$25"},{"$f":"M4B4pHousePlaceRentCouns","v":0},"Number","M4B4pHousePlaceRentCouns"]
["SRV 4q Home Repairs (e.g. structural, appliance, heating systems. etc.) (Including Emergency Home Repairs)","M4B4qHouseImproveRepair",{"$f":"\"'='\" & MID(CELL(\"address\",INDIRECT(B852)),$I$3+1,100)","v":"'='Services Housing'!$C$27"},{"$f":"M4B4qHouseImproveRepair","v":0},"Number","M4B4qHouseImproveRepair"]
["SRV 4r Independent-living Home Improvements (e.g. ramps, tub and shower grab bars, handicap accessible modifications, etc.)","M4B4rWxIndLiv",{"$f":"\"'='\" & MID(CELL(\"address\",INDIRECT(B853)),$I$3+1,100)","v":"'='Services Housing'!$C$29"},{"$f":"M4B4rWxIndLiv","v":0},"Number","M4B4rWxIndLiv"]
["SRV 4s Healthy Homes Services(e.g. reduction or elimination of lead, radon, carbon dioxide and/or fire hazards or electrical issues, etc.)","M4B4sWxHealthyHomes",{"$f":"\"'='\" & MID(CELL(\"address\",INDIRECT(B854)),$I$3+1,100)","v":"'='Services Housing'!$C$30"},{"$f":"M4B4sWxHealthyHomes","v":0},"Number","M4B4sWxHealthyHomes"]
["SRV 4t Energy Efficiency Improvements (e.g. insullation, air sealing, furnace repair, etc.)","M4B4tWxEE",{"$f":"\"'='\" & MID(CELL(\"address\",INDIRECT(B855)),$I$3+1,100)","v":"'='Services Housing'!$C$31"},{"$f":"M4B4tWxEE","v":0},"Number","M4B4tWxEE"]
["SRV 3a Financial Capability Skills Training","M4B3aTrainingFinancialCap",{"$f":"\"'='\" & MID(CELL(\"address\",INDIRECT(B856)),$I$3+1,100)","v":"'='Services Income'!$C$7"},{"$f":"M4B3aTrainingFinancialCap","v":13},"Number","M4B3aTrainingFinancialCap"]
["SRV 3b Financial Coaching/Counseling ","M4B3bTrainingFinancialCounsel",{"$f":"\"'='\" & MID(CELL(\"address\",INDIRECT(B857)),$I$3+1,100)","v":"'='Services Income'!$C$8"},{"$f":"M4B3bTrainingFinancialCounsel","v":13},"Number","M4B3bTrainingFinancialCounsel"]
["SRV 3c Financial Management Programs (including budgeting, credit management, credit repair, credit counseling, etc.)   ","M4B3cTrainingFinancialMgmt",{"$f":"\"'='\" & MID(CELL(\"address\",INDIRECT(B858)),$I$3+1,100)","v":"'='Services Income'!$C$9"},{"$f":"M4B3cTrainingFinancialMgmt","v":15},"Number","M4B3cTrainingFinancialMgmt"]
["SRV 3d First-time Homebuyer Counseling","M4B3dTrainingHomebuyer",{"$f":"\"'='\" & MID(CELL(\"address\",INDIRECT(B859)),$I$3+1,100)","v":"'='Services Income'!$C$10"},{"$f":"M4B3dTrainingHomebuyer","v":0},"Number","M4B3dTrainingHomebuyer"]
["SRV 3e Foreclosure Prevention Counseling","M4B3eTrainingForeclosure",{"$f":"\"'='\" & MID(CELL(\"address\",INDIRECT(B860)),$I$3+1,100)","v":"'='Services Income'!$C$11"},{"$f":"M4B3eTrainingForeclosure","v":0},"Number","M4B3eTrainingForeclosure"]
["SRV 3f Small Business Start-Up and Development Counseling Sessions/Classes","M4B3fTrainingSmallBus",{"$f":"\"'='\" & MID(CELL(\"address\",INDIRECT(B861)),$I$3+1,100)","v":"'='Services Income'!$C$12"},{"$f":"M4B3fTrainingSmallBus","v":0},"Number","M4B3fTrainingSmallBus"]
["SRV 3g Child Support Payments","M4B3gBenCoordChildSup",{"$f":"\"'='\" & MID(CELL(\"address\",INDIRECT(B862)),$I$3+1,100)","v":"'='Services Income'!$C$14"},{"$f":"M4B3gBenCoordChildSup","v":1},"Number","M4B3gBenCoordChildSup"]
["SRV 3h Health Insurance","M4B3hBenCoordHealthIns",{"$f":"\"'='\" & MID(CELL(\"address\",INDIRECT(B863)),$I$3+1,100)","v":"'='Services Income'!$C$15"},{"$f":"M4B3hBenCoordHealthIns","v":1},"Number","M4B3hBenCoordHealthIns"]
["SRV 3i Social Security/SSI Payments","M4B3iBenCoordSSI",{"$f":"\"'='\" & MID(CELL(\"address\",INDIRECT(B864)),$I$3+1,100)","v":"'='Services Income'!$C$16"},{"$f":"M4B3iBenCoordSSI","v":1},"Number","M4B3iBenCoordSSI"]
["SRV 3j Veteran's Benefits","M4B3jBenCoordVeterans",{"$f":"\"'='\" & MID(CELL(\"address\",INDIRECT(B865)),$I$3+1,100)","v":"'='Services Income'!$C$17"},{"$f":"M4B3jBenCoordVeterans","v":0},"Number","M4B3jBenCoordVeterans"]
["SRV 3k TANF Benefits","M4B3kBenCoordTANF",{"$f":"\"'='\" & MID(CELL(\"address\",INDIRECT(B866)),$I$3+1,100)","v":"'='Services Income'!$C$18"},{"$f":"M4B3kBenCoordTANF","v":0},"Number","M4B3kBenCoordTANF"]
["SRV 3l SNAP Benefits","M4B3lBenCoordSNAP",{"$f":"\"'='\" & MID(CELL(\"address\",INDIRECT(B867)),$I$3+1,100)","v":"'='Services Income'!$C$19"},{"$f":"M4B3lBenCoordSNAP","v":15},"Number","M4B3lBenCoordSNAP"]
["SRV 3m Saving Accounts/IDAs and other asset building accounts","M4B3mAssetBldgSavings",{"$f":"\"'='\" & MID(CELL(\"address\",INDIRECT(B868)),$I$3+1,100)","v":"'='Services Income'!$C$21"},{"$f":"M4B3mAssetBldgSavings","v":4},"Number","M4B3mAssetBldgSavings"]
["SRV 3n Other financial products (IRA accounts, MyRA, other retirement accounts, etc.)","M4B3nAssetBldgOtherFin",{"$f":"\"'='\" & MID(CELL(\"address\",INDIRECT(B869)),$I$3+1,100)","v":"'='Services Income'!$C$22"},{"$f":"M4B3nAssetBldgOtherFin","v":0},"Number","M4B3nAssetBldgOtherFin"]
["SRV 3o VITA, EITC, or Other Tax Preparation programs","M4B3oAssetBldgVITA",{"$f":"\"'='\" & MID(CELL(\"address\",INDIRECT(B870)),$I$3+1,100)","v":"'='Services Income'!$C$23"},{"$f":"M4B3oAssetBldgVITA","v":485},"Number","M4B3oAssetBldgVITA"]
["SRV 3p Micro-loans","M4B3pMicroLoans",{"$f":"\"'='\" & MID(CELL(\"address\",INDIRECT(B871)),$I$3+1,100)","v":"'='Services Income'!$C$25"},{"$f":"M4B3pMicroLoans","v":0},"Number","M4B3pMicroLoans"]
["SRV 3q Business incubator/business development loans","M4B3qBusIncubatorLoans",{"$f":"\"'='\" & MID(CELL(\"address\",INDIRECT(B872)),$I$3+1,100)","v":"'='Services Income'!$C$26"},{"$f":"M4B3qBusIncubatorLoans","v":0},"Number","M4B3qBusIncubatorLoans"]
["SRV 3r Direct Financial Assistance","M4B3rDirectFinancialAssistance",{"$f":"\"'='\" & MID(CELL(\"address\",INDIRECT(B873)),$I$3+1,100)","v":"'='Services Income'!$C$27"},{"$f":"M4B3rDirectFinancialAssistance","v":0},"Number","M4B3rDirectFinancialAssistance"]
["SRV 7a Case Management","M4B7aCaseMgmt",{"$f":"\"'='\" & MID(CELL(\"address\",INDIRECT(B874)),$I$3+1,100)","v":"'='Support Services'!$C$7"},{"$f":"M4B7aCaseMgmt","v":62},"Number","M4B7aCaseMgmt"]
["SRV 7b Eligibility Determinations","M4B7bEligDetermin",{"$f":"\"'='\" & MID(CELL(\"address\",INDIRECT(B875)),$I$3+1,100)","v":"'='Support Services'!$C$9"},{"$f":"M4B7bEligDetermin","v":75},"Number","M4B7bEligDetermin"]
["SRV 7c Referrals","M4B7cReferrals",{"$f":"\"'='\" & MID(CELL(\"address\",INDIRECT(B876)),$I$3+1,100)","v":"'='Support Services'!$C$11"},{"$f":"M4B7cReferrals","v":179},"Number","M4B7cReferrals"]
["SRV 7d Transportation Services (e.g. bus passes, bus transport, support for auto purchase or repair; including emergency services)","M4B7dTranspServices",{"$f":"\"'='\" & MID(CELL(\"address\",INDIRECT(B877)),$I$3+1,100)","v":"'='Support Services'!$C$13"},{"$f":"M4B7dTranspServices","v":0},"Number","M4B7dTranspServices"]
["SRV 7e Child Care subsidies","M4B7eChildcareSubsidy",{"$f":"\"'='\" & MID(CELL(\"address\",INDIRECT(B878)),$I$3+1,100)","v":"'='Support Services'!$C$15"},{"$f":"M4B7eChildcareSubsidy","v":0},"Number","M4B7eChildcareSubsidy"]
["SRV 7f Child Care payments","M4B7fChildcarePayment",{"$f":"\"'='\" & MID(CELL(\"address\",INDIRECT(B879)),$I$3+1,100)","v":"'='Support Services'!$C$16"},{"$f":"M4B7fChildcarePayment","v":0},"Number","M4B7fChildcarePayment"]
["SRV 7g Day Centers","M4B7gEldercareDayCenter",{"$f":"\"'='\" & MID(CELL(\"address\",INDIRECT(B880)),$I$3+1,100)","v":"'='Support Services'!$C$18"},{"$f":"M4B7gEldercareDayCenter","v":0},"Number","M4B7gEldercareDayCenter"]
["SRV 7h Birth Certificate ","M4B7hIdBirthCert",{"$f":"\"'='\" & MID(CELL(\"address\",INDIRECT(B881)),$I$3+1,100)","v":"'='Support Services'!$C$20"},{"$f":"M4B7hIdBirthCert","v":0},"Number","M4B7hIdBirthCert"]
["SRV 7i Social Security Card ","M4B7iIdSSNCard",{"$f":"\"'='\" & MID(CELL(\"address\",INDIRECT(B882)),$I$3+1,100)","v":"'='Support Services'!$C$21"},{"$f":"M4B7iIdSSNCard","v":0},"Number","M4B7iIdSSNCard"]
["SRV 7j Driver's License ","M4B7jIdDriverLicense",{"$f":"\"'='\" & MID(CELL(\"address\",INDIRECT(B883)),$I$3+1,100)","v":"'='Support Services'!$C$22"},{"$f":"M4B7jIdDriverLicense","v":2},"Number","M4B7jIdDriverLicense"]
["SRV 7k Criminal Record Expungements","M4B7kReentryServ",{"$f":"\"'='\" & MID(CELL(\"address\",INDIRECT(B884)),$I$3+1,100)","v":"'='Support Services'!$C$24"},{"$f":"M4B7kReentryServ","v":0},"Number","M4B7kReentryServ"]
["SRV 7l Immigration Support Services (relocation, food, clothing)","M4B7lImmigrantSupport",{"$f":"\"'='\" & MID(CELL(\"address\",INDIRECT(B885)),$I$3+1,100)","v":"'='Support Services'!$C$26"},{"$f":"M4B7lImmigrantSupport","v":0},"Number","M4B7lImmigrantSupport"]
["SRV 7m Legal Assistance ","M4B7mLegalAssist",{"$f":"\"'='\" & MID(CELL(\"address\",INDIRECT(B886)),$I$3+1,100)","v":"'='Support Services'!$C$28"},{"$f":"M4B7mLegalAssist","v":0},"Number","M4B7mLegalAssist"]
["SRV 7n Emergency Clothing Assistance","M4B7nEmerClothing",{"$f":"\"'='\" & MID(CELL(\"address\",INDIRECT(B887)),$I$3+1,100)","v":"'='Support Services'!$C$30"},{"$f":"M4B7nEmerClothing","v":0},"Number","M4B7nEmerClothing"]
["SRV 7o Mediation/Customer Advocacy Interventions","M4B7oMediation",{"$f":"\"'='\" & MID(CELL(\"address\",INDIRECT(B888)),$I$3+1,100)","v":"'='Support Services'!$C$32"},{"$f":"M4B7oMediation","v":0},"Number","M4B7oMediation"]
["SRV 7p Personal Protective Equipment (PPE)","M4B7pPPE",{"$f":"\"'='\" & MID(CELL(\"address\",INDIRECT(B889)),$I$3+1,100)","v":"'='Support Services'!$C$34"},{"$f":"M4B7pPPE","v":0},"Number","M4B7pPPE"]
["SRV 7q COVID Testing","M4B7qCOVIDTesting",{"$f":"\"'='\" & MID(CELL(\"address\",INDIRECT(B890)),$I$3+1,100)","v":"'='Support Services'!$C$35"},{"$f":"M4B7qCOVIDTesting","v":0},"Number","M4B7qCOVIDTesting"]